{"text_format":"1","workbook":"xlsx","n_sheets":3,"sheets":["Produktionsanlæg","Distributionsanlæg","Fællesfunktionsanlæg"],"not_rendered":{"charts":0,"images":0,"macros":1,"external_links":0,"defined_names":2,"comments":0,"pivot_tables":0},"unopened":[],"bounds":{"document_bytes":16777216,"sheet_cells":100000,"rows_first":2000,"rows_last":500,"rows_between":2000,"halvings":0,"cell_chars":16384,"cell_head_chars":4096},"cells_cut":0,"cells_raw":0,"read":"whole","date_system":"1900"}

{"sheet":"Produktionsanlæg","index":0,"n_rows":607,"n_cols":9,"rows_kept":607,"cut":false,"hidden":false,"merged":[[0,0,1,0],[0,1,1,1],[0,2,1,2],[0,3,1,3],[0,8,1,8],[0,4,1,4],[0,5,1,5],[0,6,1,6],[0,7,1,7]]}
["Produktionsanlæg","Enhed","Standard-levetid","Samlet mængde per 31/12-2022","Samlet mængde per 31/12-2023","Samlet mængde per 31/12-2024","Afvigelse 2022-2023","Afvigelse 2023-2024","Bemærkninger"]
[]
["Renseanlæg 1",null,null,null,null,null,{"$f":"IF(D3=\"\",IF(E3>0,\"Ny data\",IF(E3=\"\",\"\",0)),IF(D3=0,IF(E3=0,0,\"Ny data\"),(E3-D3)/D3))","v":""},{"$f":"IF(E3=\"\",IF(F3>0,\"Ny data\",IF(F3=\"\",\"\",0)),IF(E3=0,IF(F3=0,0,\"Ny data\"),(F3-E3)/E3))","v":""}]
["Mindre renseanlæg",null,null,null,null,null,"",""]
["Mindre renseanlæg < 5.000 PE","PE",40,0,null,null,0,""]
["Renseanlæg >= 5.000 PE, Vandbehandling",null,null,null,null,null,"",""]
["Indløb med riste, Konstruktioner","PE",60,153000,153000,153000,0,0]
["Indløb med riste, Mek/EL","PE",20,153000,153000,153000,0,0]
["Indløb med riste, SRO","PE",10,153000,153000,153000,0,0]
["Sand- og fedtfang, Kontruktioner","PE",60,153000,153000,153000,0,0]
["Sand- og fedtfang, Mek/EL","PE",20,153000,153000,153000,0,0]
["Sand- og fedtfang, SRO","PE",10,153000,153000,153000,0,0]
["Forklaring, Konstruktioner","PE",60,153000,153000,153000,0,0]
["Forklaring, Mek/EL","PE",20,153000,153000,153000,0,0]
["Forklaring, SRO","PE",10,153000,153000,153000,0,0]
["Beluftningstanke, Konstruktioner","PE",60,153000,153000,153000,0,0]
["Beluftningstanke, Mek/EL","PE",20,153000,153000,153000,0,0]
["Beluftningstanke, SRO","PE",10,153000,153000,153000,0,0]
["Efterklaringstanke, Konstruktioner","PE",60,153000,153000,153000,0,0]
["Efterklaringstanke, Mek/El","PE",20,153000,153000,153000,0,0]
["Efterklaringstanke, SRO","PE",10,153000,153000,153000,0,0]
["Efterbehandlingsanlæg (sandfilter), Konstruktioner","PE",60,0,null,null,0,""]
["Efterbehandlingsanlæg (sandfilter), Mek/EL","PE",20,0,null,null,0,""]
["Efterbehandlingsanlæg (sandfilter), SRO","PE",10,0,null,null,0,""]
["Renseanlæg >= 5.000 PE, Slambehandling",null,null,null,null,null,"",""]
["Forafvanding, slam, Konstruktion","PE",60,153000,153000,153000,0,0]
["Forafvanding, slam, Mek/EL","PE",20,153000,153000,153000,0,0]
["Forafvanding, slam, SRO","PE",10,153000,153000,153000,0,0]
["Rådnetanke, slam, Konstruktioner","PE",60,153000,153000,153000,0,0]
["Rådnetanke, slam, Mek/EL","PE",20,153000,153000,153000,0,0]
["Rådnetanke, slam, SRO","PE",10,153000,153000,153000,0,0]
["Gasdisponering, Konstruktioner","PE",60,153000,153000,153000,0,0]
["Gasdisponering, Mek/EL","PE",20,153000,153000,153000,0,0]
["Gasdisponering, SRO","PE",10,153000,153000,153000,0,0]
["Gasdisponering - elproduktionsanlæg, Konstruktioner","PE",60,153000,153000,153000,0,0]
["Gasdisponering - elproduktionsanlæg, Mek/EL","PE",20,153000,153000,153000,0,0]
["Gasdisponering - elproduktionsanlæg, SRO","PE",10,153000,153000,153000,0,0]
["Gasrensning - Aktivt kulfilter","m3/t",15,153000,153000,153000,0,0]
["Gasrensning - Biologisk skrubber","m3/t",15,0,0,0,0,0]
["Opgraderingsanlæg - Membran","m3/t",15,0,0,0,0,0]
["Varmeproduktionsanlæg","m3/t",15,0,0,0,0,0]
["Slutafvanding, slam - lavteknologisk (slambede), Konstruktioner","PE",60,0,0,0,0,0]
["Slutafvanding, slam - lavteknologisk (slambede), Mek/EL","PE",20,0,0,0,0,0]
["Slutafvanding, slam - lavteknologisk (slambede), SRO","PE",10,0,0,0,0,0]
["Slutafvanding, slam - højteknologisk (centrifuger), Konstruktioner","PE",60,153000,153000,153000,0,0]
["Slutafvanding, slam - højteknologisk (centrifuger), Mek/El","PE",20,153000,153000,153000,0,0]
["Slutafvanding, slam - højteknologisk (centrifuger), SRO","PE",10,153000,153000,153000,0,0]
["Renseanlæg >= 5.000 PE, Slamdisponering",null,null,null,null,null,"",""]
["Slutdisponering, slam - lavteknologisk (slammineralisering), Konstruktioner","PE",60,0,null,null,0,""]
["Slutdisponering, slam - lavteknologisk (slammineralisering), Mek/EL","PE",20,0,null,null,0,""]
["Slutdisponering, slam - lavteknologisk (slammineralisering), SRO","PE",10,0,null,null,0,""]
["Slutdisponering, slam - højteknologisk (slamtørring), Konstruktioner","PE",60,0,null,null,0,""]
["Slutdisponering, slam - højteknologisk (slamtørring), Mek/EL","PE",20,0,null,null,0,""]
["Slutdisponering, slam - højteknologisk (slamtørring), SRO","PE",10,0,null,null,0,""]
["Slutdisponering, slam - højteknologisk (slamtørring og -forbrænding), Konstruktioner","PE",60,0,null,null,0,""]
["Slutdisponering, slam - højteknologisk (slamtørring og -forbrænding), Mek/EL","PE",20,0,null,null,0,""]
["Slutdisponering, slam - højteknologisk (slamtørring og -forbrænding), SRO","PE",10,0,null,null,0,""]
["Renseanlæg 2",null,null,null,null,null,"",""]
["Mindre renseanlæg",null,null,null,null,null,"",""]
["Mindre renseanlæg < 5.000 PE","PE",40,0,null,null,0,""]
["Renseanlæg >= 5.000 PE, Vandbehandling",null,null,null,null,null,"",""]
["Indløb med riste, Konstruktioner","PE",60,32000,32000,32000,0,0]
["Indløb med riste, Mek/EL","PE",20,32000,32000,32000,0,0]
["Indløb med riste, SRO","PE",10,32000,32000,32000,0,0]
["Sand- og fedtfang, Kontruktioner","PE",60,32000,32000,32000,0,0]
["Sand- og fedtfang, Mek/EL","PE",20,32000,32000,32000,0,0]
["Sand- og fedtfang, SRO","PE",10,32000,32000,32000,{"$f":"IF(D67=\"\",IF(E67>0,\"Ny data\",IF(E67=\"\",\"\",0)),IF(D67=0,IF(E67=0,0,\"Ny data\"),(E67-D67)/D67))","v":0},{"$f":"IF(E67=\"\",IF(F67>0,\"Ny data\",IF(F67=\"\",\"\",0)),IF(E67=0,IF(F67=0,0,\"Ny data\"),(F67-E67)/E67))","v":0}]
["Forklaring, Konstruktioner","PE",60,32000,32000,32000,0,0]
["Forklaring, Mek/EL","PE",20,32000,32000,32000,0,0]
["Forklaring, SRO","PE",10,32000,32000,32000,0,0]
["Beluftningstanke, Konstruktioner","PE",60,32000,32000,32000,0,0]
["Beluftningstanke, Mek/EL","PE",20,32000,32000,32000,0,0]
["Beluftningstanke, SRO","PE",10,32000,32000,32000,0,0]
["Efterklaringstanke, Konstruktioner","PE",60,32000,32000,32000,0,0]
["Efterklaringstanke, Mek/El","PE",20,32000,32000,32000,0,0]
["Efterklaringstanke, SRO","PE",10,32000,32000,32000,0,0]
["Efterbehandlingsanlæg (sandfilter), Konstruktioner","PE",60,0,null,null,0,""]
["Efterbehandlingsanlæg (sandfilter), Mek/EL","PE",20,0,null,null,0,""]
["Efterbehandlingsanlæg (sandfilter), SRO","PE",10,0,null,null,0,""]
["Renseanlæg >= 5.000 PE, Slambehandling",null,null,null,null,null,"",""]
["Forafvanding, slam, Konstruktion","PE",60,32000,32000,32000,0,0]
["Forafvanding, slam, Mek/EL","PE",20,32000,32000,32000,0,0]
["Forafvanding, slam, SRO","PE",10,32000,32000,32000,0,0]
["Rådnetanke, slam, Konstruktioner","PE",60,0,null,null,0,""]
["Rådnetanke, slam, Mek/EL","PE",20,0,null,null,0,""]
["Rådnetanke, slam, SRO","PE",10,0,null,null,0,""]
["Gasdisponering, Konstruktioner","PE",60,0,null,null,0,""]
["Gasdisponering, Mek/EL","PE",20,0,null,null,0,""]
["Gasdisponering, SRO","PE",10,0,null,null,0,""]
["Gasdisponering - elproduktionsanlæg, Konstruktioner","PE",60,0,null,null,0,""]
["Gasdisponering - elproduktionsanlæg, Mek/EL","PE",20,0,null,null,0,""]
["Gasdisponering - elproduktionsanlæg, SRO","PE",10,0,null,null,0,""]
["Gasrensning - Aktivt kulfilter","m3/t",15,0,null,null,0,""]
["Gasrensning - Biologisk skrubber","m3/t",15,0,null,null,0,""]
["Opgraderingsanlæg - Membran","m3/t",15,0,null,null,0,""]
["Varmeproduktionsanlæg","m3/t",15,0,null,null,0,""]
["Slutafvanding, slam - lavteknologisk (slambede), Konstruktioner","PE",60,0,null,null,0,""]
["Slutafvanding, slam - lavteknologisk (slambede), Mek/EL","PE",20,0,null,null,0,""]
["Slutafvanding, slam - lavteknologisk (slambede), SRO","PE",10,0,null,null,0,""]
["Slutafvanding, slam - højteknologisk (centrifuger), Konstruktioner","PE",60,0,null,null,0,""]
["Slutafvanding, slam - højteknologisk (centrifuger), Mek/El","PE",20,0,null,null,0,""]
["Slutafvanding, slam - højteknologisk (centrifuger), SRO","PE",10,0,null,null,0,""]
["Renseanlæg >= 5.000 PE, Slamdisponering",null,null,null,null,null,"",""]
["Slutdisponering, slam - lavteknologisk (slammineralisering), Konstruktioner","PE",60,0,null,null,0,""]
["Slutdisponering, slam - lavteknologisk (slammineralisering), Mek/EL","PE",20,0,null,null,0,""]
["Slutdisponering, slam - lavteknologisk (slammineralisering), SRO","PE",10,0,null,null,0,""]
["Slutdisponering, slam - højteknologisk (slamtørring), Konstruktioner","PE",60,0,null,null,0,""]
["Slutdisponering, slam - højteknologisk (slamtørring), Mek/EL","PE",20,0,null,null,0,""]
["Slutdisponering, slam - højteknologisk (slamtørring), SRO","PE",10,0,null,null,0,""]
["Slutdisponering, slam - højteknologisk (slamtørring og -forbrænding), Konstruktioner","PE",60,0,null,null,0,""]
["Slutdisponering, slam - højteknologisk (slamtørring og -forbrænding), Mek/EL","PE",20,0,null,null,0,""]
["Slutdisponering, slam - højteknologisk (slamtørring og -forbrænding), SRO","PE",10,0,null,null,0,""]
["Renseanlæg 3",null,null,null,null,null,"",""]
["Mindre renseanlæg",null,null,null,null,null,"",""]
["Mindre renseanlæg < 5.000 PE","PE",40,100,100,100,0,0]
["Renseanlæg >= 5.000 PE, Vandbehandling",null,null,null,null,null,"",""]
["Indløb med riste, Konstruktioner","PE",60,0,null,null,0,""]
["Indløb med riste, Mek/EL","PE",20,0,null,null,0,""]
["Indløb med riste, SRO","PE",10,0,null,null,0,""]
["Sand- og fedtfang, Kontruktioner","PE",60,0,null,null,0,""]
["Sand- og fedtfang, Mek/EL","PE",20,0,null,null,0,""]
["Sand- og fedtfang, SRO","PE",10,0,null,null,0,""]
["Forklaring, Konstruktioner","PE",60,0,null,null,0,""]
["Forklaring, Mek/EL","PE",20,0,null,null,0,""]
["Forklaring, SRO","PE",10,0,null,null,0,""]
["Beluftningstanke, Konstruktioner","PE",60,0,null,null,0,""]
["Beluftningstanke, Mek/EL","PE",20,0,null,null,0,""]
["Beluftningstanke, SRO","PE",10,0,null,null,0,""]
["Efterklaringstanke, Konstruktioner","PE",60,0,null,null,0,""]
["Efterklaringstanke, Mek/El","PE",20,0,null,null,0,""]
["Efterklaringstanke, SRO","PE",10,0,null,null,{"$f":"IF(D131=\"\",IF(E131>0,\"Ny data\",IF(E131=\"\",\"\",0)),IF(D131=0,IF(E131=0,0,\"Ny data\"),(E131-D131)/D131))","v":0},{"$f":"IF(E131=\"\",IF(F131>0,\"Ny data\",IF(F131=\"\",\"\",0)),IF(E131=0,IF(F131=0,0,\"Ny data\"),(F131-E131)/E131))","v":""}]
["Efterbehandlingsanlæg (sandfilter), Konstruktioner","PE",60,0,null,null,0,""]
["Efterbehandlingsanlæg (sandfilter), Mek/EL","PE",20,0,null,null,0,""]
["Efterbehandlingsanlæg (sandfilter), SRO","PE",10,0,null,null,0,""]
["Renseanlæg >= 5.000 PE, Slambehandling",null,null,null,null,null,"",""]
["Forafvanding, slam, Konstruktion","PE",60,0,null,null,0,""]
["Forafvanding, slam, Mek/EL","PE",20,0,null,null,0,""]
["Forafvanding, slam, SRO","PE",10,0,null,null,0,""]
["Rådnetanke, slam, Konstruktioner","PE",60,0,null,null,0,""]
["Rådnetanke, slam, Mek/EL","PE",20,0,null,null,0,""]
["Rådnetanke, slam, SRO","PE",10,0,null,null,0,""]
["Gasdisponering, Konstruktioner","PE",60,0,null,null,0,""]
["Gasdisponering, Mek/EL","PE",20,0,null,null,0,""]
["Gasdisponering, SRO","PE",10,0,null,null,0,""]
["Gasdisponering - elproduktionsanlæg, Konstruktioner","PE",60,0,null,null,0,""]
["Gasdisponering - elproduktionsanlæg, Mek/EL","PE",20,0,null,null,0,""]
["Gasdisponering - elproduktionsanlæg, SRO","PE",10,0,null,null,0,""]
["Gasrensning - Aktivt kulfilter","m3/t",15,0,null,null,0,""]
["Gasrensning - Biologisk skrubber","m3/t",15,0,null,null,0,""]
["Opgraderingsanlæg - Membran","m3/t",15,0,null,null,0,""]
["Varmeproduktionsanlæg","m3/t",15,0,null,null,0,""]
["Slutafvanding, slam - lavteknologisk (slambede), Konstruktioner","PE",60,0,null,null,0,""]
["Slutafvanding, slam - lavteknologisk (slambede), Mek/EL","PE",20,0,null,null,0,""]
["Slutafvanding, slam - lavteknologisk (slambede), SRO","PE",10,0,null,null,0,""]
["Slutafvanding, slam - højteknologisk (centrifuger), Konstruktioner","PE",60,0,null,null,0,""]
["Slutafvanding, slam - højteknologisk (centrifuger), Mek/El","PE",20,0,null,null,0,""]
["Slutafvanding, slam - højteknologisk (centrifuger), SRO","PE",10,0,null,null,0,""]
["Renseanlæg >= 5.000 PE, Slamdisponering",null,null,null,null,null,"",""]
["Slutdisponering, slam - lavteknologisk (slammineralisering), Konstruktioner","PE",60,0,null,null,0,""]
["Slutdisponering, slam - lavteknologisk (slammineralisering), Mek/EL","PE",20,0,null,null,0,""]
["Slutdisponering, slam - lavteknologisk (slammineralisering), SRO","PE",10,0,null,null,0,""]
["Slutdisponering, slam - højteknologisk (slamtørring), Konstruktioner","PE",60,0,null,null,0,""]
["Slutdisponering, slam - højteknologisk (slamtørring), Mek/EL","PE",20,0,null,null,0,""]
["Slutdisponering, slam - højteknologisk (slamtørring), SRO","PE",10,0,null,null,0,""]
["Slutdisponering, slam - højteknologisk (slamtørring og -forbrænding), Konstruktioner","PE",60,0,null,null,0,""]
["Slutdisponering, slam - højteknologisk (slamtørring og -forbrænding), Mek/EL","PE",20,0,null,null,0,""]
["Slutdisponering, slam - højteknologisk (slamtørring og -forbrænding), SRO","PE",10,0,null,null,0,""]
["Renseanlæg 4",null,null,null,null,null,"",""]
["Mindre renseanlæg",null,null,null,null,null,"",""]
["Mindre renseanlæg < 5.000 PE","PE",40,250,250,250,0,0]
["Renseanlæg >= 5.000 PE, Vandbehandling",null,null,null,null,null,"",""]
["Indløb med riste, Konstruktioner","PE",60,0,null,null,0,""]
["Indløb med riste, Mek/EL","PE",20,0,null,null,0,""]
["Indløb med riste, SRO","PE",10,0,null,null,0,""]
["Sand- og fedtfang, Kontruktioner","PE",60,0,null,null,0,""]
["Sand- og fedtfang, Mek/EL","PE",20,0,null,null,0,""]
["Sand- og fedtfang, SRO","PE",10,0,null,null,0,""]
["Forklaring, Konstruktioner","PE",60,0,null,null,0,""]
["Forklaring, Mek/EL","PE",20,0,null,null,0,""]
["Forklaring, SRO","PE",10,0,null,null,0,""]
["Beluftningstanke, Konstruktioner","PE",60,0,null,null,0,""]
["Beluftningstanke, Mek/EL","PE",20,0,null,null,0,""]
["Beluftningstanke, SRO","PE",10,0,null,null,0,""]
["Efterklaringstanke, Konstruktioner","PE",60,0,null,null,0,""]
["Efterklaringstanke, Mek/El","PE",20,0,null,null,0,""]
["Efterklaringstanke, SRO","PE",10,0,null,null,0,""]
["Efterbehandlingsanlæg (sandfilter), Konstruktioner","PE",60,0,null,null,0,""]
["Efterbehandlingsanlæg (sandfilter), Mek/EL","PE",20,0,null,null,0,""]
["Efterbehandlingsanlæg (sandfilter), SRO","PE",10,0,null,null,0,""]
["Renseanlæg >= 5.000 PE, Slambehandling",null,null,null,null,null,"",""]
["Forafvanding, slam, Konstruktion","PE",60,0,null,null,0,""]
["Forafvanding, slam, Mek/EL","PE",20,0,null,null,0,""]
["Forafvanding, slam, SRO","PE",10,0,null,null,0,""]
["Rådnetanke, slam, Konstruktioner","PE",60,0,null,null,0,""]
["Rådnetanke, slam, Mek/EL","PE",20,0,null,null,{"$f":"IF(D195=\"\",IF(E195>0,\"Ny data\",IF(E195=\"\",\"\",0)),IF(D195=0,IF(E195=0,0,\"Ny data\"),(E195-D195)/D195))","v":0},{"$f":"IF(E195=\"\",IF(F195>0,\"Ny data\",IF(F195=\"\",\"\",0)),IF(E195=0,IF(F195=0,0,\"Ny data\"),(F195-E195)/E195))","v":""}]
["Rådnetanke, slam, SRO","PE",10,0,null,null,0,""]
["Gasdisponering, Konstruktioner","PE",60,0,null,null,0,""]
["Gasdisponering, Mek/EL","PE",20,0,null,null,0,""]
["Gasdisponering, SRO","PE",10,0,null,null,0,""]
["Gasdisponering - elproduktionsanlæg, Konstruktioner","PE",60,0,null,null,0,""]
["Gasdisponering - elproduktionsanlæg, Mek/EL","PE",20,0,null,null,0,""]
["Gasdisponering - elproduktionsanlæg, SRO","PE",10,0,null,null,0,""]
["Gasrensning - Aktivt kulfilter","m3/t",15,0,null,null,0,""]
["Gasrensning - Biologisk skrubber","m3/t",15,0,null,null,0,""]
["Opgraderingsanlæg - Membran","m3/t",15,0,null,null,0,""]
["Varmeproduktionsanlæg","m3/t",15,0,null,null,0,""]
["Slutafvanding, slam - lavteknologisk (slambede), Konstruktioner","PE",60,0,null,null,0,""]
["Slutafvanding, slam - lavteknologisk (slambede), Mek/EL","PE",20,0,null,null,0,""]
["Slutafvanding, slam - lavteknologisk (slambede), SRO","PE",10,0,null,null,0,""]
["Slutafvanding, slam - højteknologisk (centrifuger), Konstruktioner","PE",60,0,null,null,0,""]
["Slutafvanding, slam - højteknologisk (centrifuger), Mek/El","PE",20,0,null,null,0,""]
["Slutafvanding, slam - højteknologisk (centrifuger), SRO","PE",10,0,null,null,0,""]
["Renseanlæg >= 5.000 PE, Slamdisponering",null,null,null,null,null,"",""]
["Slutdisponering, slam - lavteknologisk (slammineralisering), Konstruktioner","PE",60,0,null,null,0,""]
["Slutdisponering, slam - lavteknologisk (slammineralisering), Mek/EL","PE",20,0,null,null,0,""]
["Slutdisponering, slam - lavteknologisk (slammineralisering), SRO","PE",10,0,null,null,0,""]
["Slutdisponering, slam - højteknologisk (slamtørring), Konstruktioner","PE",60,0,null,null,0,""]
["Slutdisponering, slam - højteknologisk (slamtørring), Mek/EL","PE",20,0,null,null,0,""]
["Slutdisponering, slam - højteknologisk (slamtørring), SRO","PE",10,0,null,null,0,""]
["Slutdisponering, slam - højteknologisk (slamtørring og -forbrænding), Konstruktioner","PE",60,0,null,null,0,""]
["Slutdisponering, slam - højteknologisk (slamtørring og -forbrænding), Mek/EL","PE",20,0,null,null,0,""]
["Slutdisponering, slam - højteknologisk (slamtørring og -forbrænding), SRO","PE",10,0,null,null,0,""]
["Renseanlæg 5",null,null,null,null,null,"",""]
["Mindre renseanlæg",null,null,null,null,null,"",""]
["Mindre renseanlæg < 5.000 PE","PE",40,300,300,300,0,0]
["Renseanlæg >= 5.000 PE, Vandbehandling",null,null,null,null,null,"",""]
["Indløb med riste, Konstruktioner","PE",60,0,null,null,0,""]
["Indløb med riste, Mek/EL","PE",20,0,null,null,0,""]
["Indløb med riste, SRO","PE",10,0,null,null,0,""]
["Sand- og fedtfang, Kontruktioner","PE",60,0,null,null,0,""]
["Sand- og fedtfang, Mek/EL","PE",20,0,null,null,0,""]
["Sand- og fedtfang, SRO","PE",10,0,null,null,0,""]
["Forklaring, Konstruktioner","PE",60,0,null,null,0,""]
["Forklaring, Mek/EL","PE",20,0,null,null,0,""]
["Forklaring, SRO","PE",10,0,null,null,0,""]
["Beluftningstanke, Konstruktioner","PE",60,0,null,null,0,""]
["Beluftningstanke, Mek/EL","PE",20,0,null,null,0,""]
["Beluftningstanke, SRO","PE",10,0,null,null,0,""]
["Efterklaringstanke, Konstruktioner","PE",60,0,null,null,0,""]
["Efterklaringstanke, Mek/El","PE",20,0,null,null,0,""]
["Efterklaringstanke, SRO","PE",10,0,null,null,0,""]
["Efterbehandlingsanlæg (sandfilter), Konstruktioner","PE",60,0,null,null,0,""]
["Efterbehandlingsanlæg (sandfilter), Mek/EL","PE",20,0,null,null,0,""]
["Efterbehandlingsanlæg (sandfilter), SRO","PE",10,0,null,null,0,""]
["Renseanlæg >= 5.000 PE, Slambehandling",null,null,null,null,null,"",""]
["Forafvanding, slam, Konstruktion","PE",60,0,null,null,0,""]
["Forafvanding, slam, Mek/EL","PE",20,0,null,null,0,""]
["Forafvanding, slam, SRO","PE",10,0,null,null,0,""]
["Rådnetanke, slam, Konstruktioner","PE",60,0,null,null,0,""]
["Rådnetanke, slam, Mek/EL","PE",20,0,null,null,0,""]
["Rådnetanke, slam, SRO","PE",10,0,null,null,0,""]
["Gasdisponering, Konstruktioner","PE",60,0,null,null,0,""]
["Gasdisponering, Mek/EL","PE",20,0,null,null,0,""]
["Gasdisponering, SRO","PE",10,0,null,null,0,""]
["Gasdisponering - elproduktionsanlæg, Konstruktioner","PE",60,0,null,null,0,""]
["Gasdisponering - elproduktionsanlæg, Mek/EL","PE",20,0,null,null,0,""]
["Gasdisponering - elproduktionsanlæg, SRO","PE",10,0,null,null,0,""]
["Gasrensning - Aktivt kulfilter","m3/t",15,0,null,null,0,""]
["Gasrensning - Biologisk skrubber","m3/t",15,0,null,null,{"$f":"IF(D259=\"\",IF(E259>0,\"Ny data\",IF(E259=\"\",\"\",0)),IF(D259=0,IF(E259=0,0,\"Ny data\"),(E259-D259)/D259))","v":0},{"$f":"IF(E259=\"\",IF(F259>0,\"Ny data\",IF(F259=\"\",\"\",0)),IF(E259=0,IF(F259=0,0,\"Ny data\"),(F259-E259)/E259))","v":""}]
["Opgraderingsanlæg - Membran","m3/t",15,0,null,null,0,""]
["Varmeproduktionsanlæg","m3/t",15,0,null,null,0,""]
["Slutafvanding, slam - lavteknologisk (slambede), Konstruktioner","PE",60,0,null,null,0,""]
["Slutafvanding, slam - lavteknologisk (slambede), Mek/EL","PE",20,0,null,null,0,""]
["Slutafvanding, slam - lavteknologisk (slambede), SRO","PE",10,0,null,null,0,""]
["Slutafvanding, slam - højteknologisk (centrifuger), Konstruktioner","PE",60,0,null,null,0,""]
["Slutafvanding, slam - højteknologisk (centrifuger), Mek/El","PE",20,0,null,null,0,""]
["Slutafvanding, slam - højteknologisk (centrifuger), SRO","PE",10,0,null,null,0,""]
["Renseanlæg >= 5.000 PE, Slamdisponering",null,null,null,null,null,"",""]
["Slutdisponering, slam - lavteknologisk (slammineralisering), Konstruktioner","PE",60,0,null,null,0,""]
["Slutdisponering, slam - lavteknologisk (slammineralisering), Mek/EL","PE",20,0,null,null,0,""]
["Slutdisponering, slam - lavteknologisk (slammineralisering), SRO","PE",10,0,null,null,0,""]
["Slutdisponering, slam - højteknologisk (slamtørring), Konstruktioner","PE",60,0,null,null,0,""]
["Slutdisponering, slam - højteknologisk (slamtørring), Mek/EL","PE",20,0,null,null,0,""]
["Slutdisponering, slam - højteknologisk (slamtørring), SRO","PE",10,0,null,null,0,""]
["Slutdisponering, slam - højteknologisk (slamtørring og -forbrænding), Konstruktioner","PE",60,0,null,null,0,""]
["Slutdisponering, slam - højteknologisk (slamtørring og -forbrænding), Mek/EL","PE",20,0,null,null,0,""]
["Slutdisponering, slam - højteknologisk (slamtørring og -forbrænding), SRO","PE",10,0,null,null,0,""]
["Renseanlæg 6",null,null,null,null,null,"",""]
["Mindre renseanlæg",null,null,null,null,null,"",""]
["Mindre renseanlæg < 5.000 PE","PE",40,150,150,150,0,0]
["Renseanlæg >= 5.000 PE, Vandbehandling",null,null,null,null,null,"",""]
["Indløb med riste, Konstruktioner","PE",60,0,null,null,0,""]
["Indløb med riste, Mek/EL","PE",20,0,null,null,0,""]
["Indløb med riste, SRO","PE",10,0,null,null,0,""]
["Sand- og fedtfang, Kontruktioner","PE",60,0,null,null,0,""]
["Sand- og fedtfang, Mek/EL","PE",20,0,null,null,0,""]
["Sand- og fedtfang, SRO","PE",10,0,null,null,0,""]
["Forklaring, Konstruktioner","PE",60,0,null,null,0,""]
["Forklaring, Mek/EL","PE",20,0,null,null,0,""]
["Forklaring, SRO","PE",10,0,null,null,0,""]
["Beluftningstanke, Konstruktioner","PE",60,0,null,null,0,""]
["Beluftningstanke, Mek/EL","PE",20,0,null,null,0,""]
["Beluftningstanke, SRO","PE",10,0,null,null,0,""]
["Efterklaringstanke, Konstruktioner","PE",60,0,null,null,0,""]
["Efterklaringstanke, Mek/El","PE",20,0,null,null,0,""]
["Efterklaringstanke, SRO","PE",10,0,null,null,0,""]
["Efterbehandlingsanlæg (sandfilter), Konstruktioner","PE",60,0,null,null,0,""]
["Efterbehandlingsanlæg (sandfilter), Mek/EL","PE",20,0,null,null,0,""]
["Efterbehandlingsanlæg (sandfilter), SRO","PE",10,0,null,null,0,""]
["Renseanlæg >= 5.000 PE, Slambehandling",null,null,null,null,null,"",""]
["Forafvanding, slam, Konstruktion","PE",60,0,null,null,0,""]
["Forafvanding, slam, Mek/EL","PE",20,0,null,null,0,""]
["Forafvanding, slam, SRO","PE",10,0,null,null,0,""]
["Rådnetanke, slam, Konstruktioner","PE",60,0,null,null,0,""]
["Rådnetanke, slam, Mek/EL","PE",20,0,null,null,0,""]
["Rådnetanke, slam, SRO","PE",10,0,null,null,0,""]
["Gasdisponering, Konstruktioner","PE",60,0,null,null,0,""]
["Gasdisponering, Mek/EL","PE",20,0,null,null,0,""]
["Gasdisponering, SRO","PE",10,0,null,null,0,""]
["Gasdisponering - elproduktionsanlæg, Konstruktioner","PE",60,0,null,null,0,""]
["Gasdisponering - elproduktionsanlæg, Mek/EL","PE",20,0,null,null,0,""]
["Gasdisponering - elproduktionsanlæg, SRO","PE",10,0,null,null,0,""]
["Gasrensning - Aktivt kulfilter","m3/t",15,0,null,null,0,""]
["Gasrensning - Biologisk skrubber","m3/t",15,0,null,null,0,""]
["Opgraderingsanlæg - Membran","m3/t",15,0,null,null,0,""]
["Varmeproduktionsanlæg","m3/t",15,0,null,null,0,""]
["Slutafvanding, slam - lavteknologisk (slambede), Konstruktioner","PE",60,0,null,null,0,""]
["Slutafvanding, slam - lavteknologisk (slambede), Mek/EL","PE",20,0,null,null,0,""]
["Slutafvanding, slam - lavteknologisk (slambede), SRO","PE",10,0,null,null,0,""]
["Slutafvanding, slam - højteknologisk (centrifuger), Konstruktioner","PE",60,0,null,null,0,""]
["Slutafvanding, slam - højteknologisk (centrifuger), Mek/El","PE",20,0,null,null,0,""]
["Slutafvanding, slam - højteknologisk (centrifuger), SRO","PE",10,0,null,null,0,""]
["Renseanlæg >= 5.000 PE, Slamdisponering",null,null,null,null,null,{"$f":"IF(D323=\"\",IF(E323>0,\"Ny data\",IF(E323=\"\",\"\",0)),IF(D323=0,IF(E323=0,0,\"Ny data\"),(E323-D323)/D323))","v":""},{"$f":"IF(E323=\"\",IF(F323>0,\"Ny data\",IF(F323=\"\",\"\",0)),IF(E323=0,IF(F323=0,0,\"Ny data\"),(F323-E323)/E323))","v":""}]
["Slutdisponering, slam - lavteknologisk (slammineralisering), Konstruktioner","PE",60,0,null,null,0,""]
["Slutdisponering, slam - lavteknologisk (slammineralisering), Mek/EL","PE",20,0,null,null,0,""]
["Slutdisponering, slam - lavteknologisk (slammineralisering), SRO","PE",10,0,null,null,0,""]
["Slutdisponering, slam - højteknologisk (slamtørring), Konstruktioner","PE",60,0,null,null,0,""]
["Slutdisponering, slam - højteknologisk (slamtørring), Mek/EL","PE",20,0,null,null,0,""]
["Slutdisponering, slam - højteknologisk (slamtørring), SRO","PE",10,0,null,null,0,""]
["Slutdisponering, slam - højteknologisk (slamtørring og -forbrænding), Konstruktioner","PE",60,0,null,null,0,""]
["Slutdisponering, slam - højteknologisk (slamtørring og -forbrænding), Mek/EL","PE",20,0,null,null,0,""]
["Slutdisponering, slam - højteknologisk (slamtørring og -forbrænding), SRO","PE",10,0,null,null,0,""]
["Renseanlæg 7",null,null,null,null,null,"",""]
["Mindre renseanlæg",null,null,null,null,null,"",""]
["Mindre renseanlæg < 5.000 PE","PE",40,0,null,null,0,""]
["Renseanlæg >= 5.000 PE, Vandbehandling",null,null,null,null,null,"",""]
["Indløb med riste, Konstruktioner","PE",60,133000,133000,133000,0,0]
["Indløb med riste, Mek/EL","PE",20,133000,133000,133000,0,0]
["Indløb med riste, SRO","PE",10,133000,133000,133000,0,0]
["Sand- og fedtfang, Kontruktioner","PE",60,133000,133000,133000,0,0]
["Sand- og fedtfang, Mek/EL","PE",20,133000,133000,133000,0,0]
["Sand- og fedtfang, SRO","PE",10,133000,133000,133000,0,0]
["Forklaring, Konstruktioner","PE",60,0,0,0,0,0]
["Forklaring, Mek/EL","PE",20,0,0,0,0,0]
["Forklaring, SRO","PE",10,0,0,0,0,0]
["Beluftningstanke, Konstruktioner","PE",60,133000,133000,133000,0,0]
["Beluftningstanke, Mek/EL","PE",20,133000,133000,133000,0,0]
["Beluftningstanke, SRO","PE",10,133000,133000,133000,0,0]
["Efterklaringstanke, Konstruktioner","PE",60,133000,133000,133000,0,0]
["Efterklaringstanke, Mek/El","PE",20,133000,133000,133000,0,0]
["Efterklaringstanke, SRO","PE",10,133000,133000,133000,0,0]
["Efterbehandlingsanlæg (sandfilter), Konstruktioner","PE",60,0,0,0,0,0]
["Efterbehandlingsanlæg (sandfilter), Mek/EL","PE",20,0,0,0,0,0]
["Efterbehandlingsanlæg (sandfilter), SRO","PE",10,0,0,0,0,0]
["Renseanlæg >= 5.000 PE, Slambehandling",null,null,null,null,null,"",""]
["Forafvanding, slam, Konstruktion","PE",60,133000,133000,133000,0,0]
["Forafvanding, slam, Mek/EL","PE",20,133000,133000,133000,0,0]
["Forafvanding, slam, SRO","PE",10,133000,133000,133000,0,0]
["Rådnetanke, slam, Konstruktioner","PE",60,0,0,0,0,0]
["Rådnetanke, slam, Mek/EL","PE",20,0,0,0,0,0]
["Rådnetanke, slam, SRO","PE",10,0,0,0,0,0]
["Gasdisponering, Konstruktioner","PE",60,0,0,0,0,0]
["Gasdisponering, Mek/EL","PE",20,0,0,0,0,0]
["Gasdisponering, SRO","PE",10,0,0,0,0,0]
["Gasdisponering - elproduktionsanlæg, Konstruktioner","PE",60,0,0,0,0,0]
["Gasdisponering - elproduktionsanlæg, Mek/EL","PE",20,0,0,0,0,0]
["Gasdisponering - elproduktionsanlæg, SRO","PE",10,0,0,0,0,0]
["Gasrensning - Aktivt kulfilter","m3/t",15,0,0,0,0,0]
["Gasrensning - Biologisk skrubber","m3/t",15,0,0,0,0,0]
["Opgraderingsanlæg - Membran","m3/t",15,0,0,0,0,0]
["Varmeproduktionsanlæg","m3/t",15,0,0,0,0,0]
["Slutafvanding, slam - lavteknologisk (slambede), Konstruktioner","PE",60,0,0,0,0,0]
["Slutafvanding, slam - lavteknologisk (slambede), Mek/EL","PE",20,0,0,0,0,0]
["Slutafvanding, slam - lavteknologisk (slambede), SRO","PE",10,0,0,0,0,0]
["Slutafvanding, slam - højteknologisk (centrifuger), Konstruktioner","PE",60,133000,133000,133000,0,0]
["Slutafvanding, slam - højteknologisk (centrifuger), Mek/El","PE",20,133000,133000,133000,0,0]
["Slutafvanding, slam - højteknologisk (centrifuger), SRO","PE",10,133000,133000,133000,0,0]
["Renseanlæg >= 5.000 PE, Slamdisponering",null,null,null,null,null,"",""]
["Slutdisponering, slam - lavteknologisk (slammineralisering), Konstruktioner","PE",60,0,null,null,0,""]
["Slutdisponering, slam - lavteknologisk (slammineralisering), Mek/EL","PE",20,0,null,null,0,""]
["Slutdisponering, slam - lavteknologisk (slammineralisering), SRO","PE",10,0,null,null,0,""]
["Slutdisponering, slam - højteknologisk (slamtørring), Konstruktioner","PE",60,0,null,null,0,""]
["Slutdisponering, slam - højteknologisk (slamtørring), Mek/EL","PE",20,0,null,null,0,""]
["Slutdisponering, slam - højteknologisk (slamtørring), SRO","PE",10,0,null,null,0,""]
["Slutdisponering, slam - højteknologisk (slamtørring og -forbrænding), Konstruktioner","PE",60,0,null,null,0,""]
["Slutdisponering, slam - højteknologisk (slamtørring og -forbrænding), Mek/EL","PE",20,0,null,null,0,""]
["Slutdisponering, slam - højteknologisk (slamtørring og -forbrænding), SRO","PE",10,0,null,null,{"$f":"IF(D387=\"\",IF(E387>0,\"Ny data\",IF(E387=\"\",\"\",0)),IF(D387=0,IF(E387=0,0,\"Ny data\"),(E387-D387)/D387))","v":0},{"$f":"IF(E387=\"\",IF(F387>0,\"Ny data\",IF(F387=\"\",\"\",0)),IF(E387=0,IF(F387=0,0,\"Ny data\"),(F387-E387)/E387))","v":""}]
["Renseanlæg 8",null,null,null,null,null,"",""]
["Mindre renseanlæg",null,null,null,null,null,"",""]
["Mindre renseanlæg < 5.000 PE","PE",40,0,null,null,0,""]
["Renseanlæg >= 5.000 PE, Vandbehandling",null,null,null,null,null,"",""]
["Indløb med riste, Konstruktioner","PE",60,10000,10000,10000,0,0]
["Indløb med riste, Mek/EL","PE",20,10000,10000,10000,0,0]
["Indløb med riste, SRO","PE",10,10000,10000,10000,0,0]
["Sand- og fedtfang, Kontruktioner","PE",60,10000,10000,10000,0,0]
["Sand- og fedtfang, Mek/EL","PE",20,10000,10000,10000,0,0]
["Sand- og fedtfang, SRO","PE",10,10000,10000,10000,0,0]
["Forklaring, Konstruktioner","PE",60,0,0,0,0,0]
["Forklaring, Mek/EL","PE",20,0,0,0,0,0]
["Forklaring, SRO","PE",10,0,0,0,0,0]
["Beluftningstanke, Konstruktioner","PE",60,10000,10000,10000,0,0]
["Beluftningstanke, Mek/EL","PE",20,10000,10000,10000,0,0]
["Beluftningstanke, SRO","PE",10,10000,10000,10000,0,0]
["Efterklaringstanke, Konstruktioner","PE",60,10000,10000,10000,0,0]
["Efterklaringstanke, Mek/El","PE",20,10000,10000,10000,0,0]
["Efterklaringstanke, SRO","PE",10,10000,10000,10000,0,0]
["Efterbehandlingsanlæg (sandfilter), Konstruktioner","PE",60,0,0,0,0,0]
["Efterbehandlingsanlæg (sandfilter), Mek/EL","PE",20,0,0,0,0,0]
["Efterbehandlingsanlæg (sandfilter), SRO","PE",10,0,0,0,0,0]
["Renseanlæg >= 5.000 PE, Slambehandling",null,null,null,null,null,"",""]
["Forafvanding, slam, Konstruktion","PE",60,10000,10000,10000,0,0]
["Forafvanding, slam, Mek/EL","PE",20,10000,10000,10000,0,0]
["Forafvanding, slam, SRO","PE",10,10000,10000,10000,0,0]
["Rådnetanke, slam, Konstruktioner","PE",60,0,null,null,0,""]
["Rådnetanke, slam, Mek/EL","PE",20,0,null,null,0,""]
["Rådnetanke, slam, SRO","PE",10,0,null,null,0,""]
["Gasdisponering, Konstruktioner","PE",60,0,null,null,0,""]
["Gasdisponering, Mek/EL","PE",20,0,null,null,0,""]
["Gasdisponering, SRO","PE",10,0,null,null,0,""]
["Gasdisponering - elproduktionsanlæg, Konstruktioner","PE",60,0,null,null,0,""]
["Gasdisponering - elproduktionsanlæg, Mek/EL","PE",20,0,null,null,0,""]
["Gasdisponering - elproduktionsanlæg, SRO","PE",10,0,null,null,0,""]
["Gasrensning - Aktivt kulfilter","m3/t",15,0,null,null,0,""]
["Gasrensning - Biologisk skrubber","m3/t",15,0,null,null,0,""]
["Opgraderingsanlæg - Membran","m3/t",15,0,null,null,0,""]
["Varmeproduktionsanlæg","m3/t",15,0,null,null,0,""]
["Slutafvanding, slam - lavteknologisk (slambede), Konstruktioner","PE",60,0,null,null,0,""]
["Slutafvanding, slam - lavteknologisk (slambede), Mek/EL","PE",20,0,null,null,0,""]
["Slutafvanding, slam - lavteknologisk (slambede), SRO","PE",10,0,null,null,0,""]
["Slutafvanding, slam - højteknologisk (centrifuger), Konstruktioner","PE",60,0,null,null,0,""]
["Slutafvanding, slam - højteknologisk (centrifuger), Mek/El","PE",20,0,null,null,0,""]
["Slutafvanding, slam - højteknologisk (centrifuger), SRO","PE",10,0,null,null,0,""]
["Renseanlæg >= 5.000 PE, Slamdisponering",null,null,null,null,null,"",""]
["Slutdisponering, slam - lavteknologisk (slammineralisering), Konstruktioner","PE",60,0,null,null,0,""]
["Slutdisponering, slam - lavteknologisk (slammineralisering), Mek/EL","PE",20,0,null,null,0,""]
["Slutdisponering, slam - lavteknologisk (slammineralisering), SRO","PE",10,0,null,null,0,""]
["Slutdisponering, slam - højteknologisk (slamtørring), Konstruktioner","PE",60,0,null,null,0,""]
["Slutdisponering, slam - højteknologisk (slamtørring), Mek/EL","PE",20,0,null,null,0,""]
["Slutdisponering, slam - højteknologisk (slamtørring), SRO","PE",10,0,null,null,0,""]
["Slutdisponering, slam - højteknologisk (slamtørring og -forbrænding), Konstruktioner","PE",60,0,null,null,0,""]
["Slutdisponering, slam - højteknologisk (slamtørring og -forbrænding), Mek/EL","PE",20,0,null,null,0,""]
["Slutdisponering, slam - højteknologisk (slamtørring og -forbrænding), SRO","PE",10,0,null,null,0,""]
["Renseanlæg 9",null,null,null,null,null,"",""]
["Mindre renseanlæg",null,null,null,null,null,"",""]
["Mindre renseanlæg < 5.000 PE","PE",40,400,400,400,0,0]
["Renseanlæg >= 5.000 PE, Vandbehandling",null,null,null,null,null,"",""]
["Indløb med riste, Konstruktioner","PE",60,0,null,null,0,""]
["Indløb med riste, Mek/EL","PE",20,0,null,null,0,""]
["Indløb med riste, SRO","PE",10,0,null,null,0,""]
["Sand- og fedtfang, Kontruktioner","PE",60,0,null,null,0,""]
["Sand- og fedtfang, Mek/EL","PE",20,0,null,null,{"$f":"IF(D451=\"\",IF(E451>0,\"Ny data\",IF(E451=\"\",\"\",0)),IF(D451=0,IF(E451=0,0,\"Ny data\"),(E451-D451)/D451))","v":0},{"$f":"IF(E451=\"\",IF(F451>0,\"Ny data\",IF(F451=\"\",\"\",0)),IF(E451=0,IF(F451=0,0,\"Ny data\"),(F451-E451)/E451))","v":""}]
["Sand- og fedtfang, SRO","PE",10,0,null,null,0,""]
["Forklaring, Konstruktioner","PE",60,0,null,null,0,""]
["Forklaring, Mek/EL","PE",20,0,null,null,0,""]
["Forklaring, SRO","PE",10,0,null,null,0,""]
["Beluftningstanke, Konstruktioner","PE",60,0,null,null,0,""]
["Beluftningstanke, Mek/EL","PE",20,0,null,null,0,""]
["Beluftningstanke, SRO","PE",10,0,null,null,0,""]
["Efterklaringstanke, Konstruktioner","PE",60,0,null,null,0,""]
["Efterklaringstanke, Mek/El","PE",20,0,null,null,0,""]
["Efterklaringstanke, SRO","PE",10,0,null,null,0,""]
["Efterbehandlingsanlæg (sandfilter), Konstruktioner","PE",60,0,null,null,0,""]
["Efterbehandlingsanlæg (sandfilter), Mek/EL","PE",20,0,null,null,0,""]
["Efterbehandlingsanlæg (sandfilter), SRO","PE",10,0,null,null,0,""]
["Renseanlæg >= 5.000 PE, Slambehandling",null,null,null,null,null,"",""]
["Forafvanding, slam, Konstruktion","PE",60,0,null,null,0,""]
["Forafvanding, slam, Mek/EL","PE",20,0,null,null,0,""]
["Forafvanding, slam, SRO","PE",10,0,null,null,0,""]
["Rådnetanke, slam, Konstruktioner","PE",60,0,null,null,0,""]
["Rådnetanke, slam, Mek/EL","PE",20,0,null,null,0,""]
["Rådnetanke, slam, SRO","PE",10,0,null,null,0,""]
["Gasdisponering, Konstruktioner","PE",60,0,null,null,0,""]
["Gasdisponering, Mek/EL","PE",20,0,null,null,0,""]
["Gasdisponering, SRO","PE",10,0,null,null,0,""]
["Gasdisponering - elproduktionsanlæg, Konstruktioner","PE",60,0,null,null,0,""]
["Gasdisponering - elproduktionsanlæg, Mek/EL","PE",20,0,null,null,0,""]
["Gasdisponering - elproduktionsanlæg, SRO","PE",10,0,null,null,0,""]
["Gasrensning - Aktivt kulfilter","m3/t",15,0,null,null,0,""]
["Gasrensning - Biologisk skrubber","m3/t",15,0,null,null,0,""]
["Opgraderingsanlæg - Membran","m3/t",15,0,null,null,0,""]
["Varmeproduktionsanlæg","m3/t",15,0,null,null,0,""]
["Slutafvanding, slam - lavteknologisk (slambede), Konstruktioner","PE",60,0,null,null,0,""]
["Slutafvanding, slam - lavteknologisk (slambede), Mek/EL","PE",20,0,null,null,0,""]
["Slutafvanding, slam - lavteknologisk (slambede), SRO","PE",10,0,null,null,0,""]
["Slutafvanding, slam - højteknologisk (centrifuger), Konstruktioner","PE",60,0,null,null,0,""]
["Slutafvanding, slam - højteknologisk (centrifuger), Mek/El","PE",20,0,null,null,0,""]
["Slutafvanding, slam - højteknologisk (centrifuger), SRO","PE",10,0,null,null,0,""]
["Renseanlæg >= 5.000 PE, Slamdisponering",null,null,null,null,null,"",""]
["Slutdisponering, slam - lavteknologisk (slammineralisering), Konstruktioner","PE",60,0,null,null,0,""]
["Slutdisponering, slam - lavteknologisk (slammineralisering), Mek/EL","PE",20,0,null,null,0,""]
["Slutdisponering, slam - lavteknologisk (slammineralisering), SRO","PE",10,0,null,null,0,""]
["Slutdisponering, slam - højteknologisk (slamtørring), Konstruktioner","PE",60,0,null,null,0,""]
["Slutdisponering, slam - højteknologisk (slamtørring), Mek/EL","PE",20,0,null,null,0,""]
["Slutdisponering, slam - højteknologisk (slamtørring), SRO","PE",10,0,null,null,0,""]
["Slutdisponering, slam - højteknologisk (slamtørring og -forbrænding), Konstruktioner","PE",60,0,null,null,0,""]
["Slutdisponering, slam - højteknologisk (slamtørring og -forbrænding), Mek/EL","PE",20,0,null,null,0,""]
["Slutdisponering, slam - højteknologisk (slamtørring og -forbrænding), SRO","PE",10,0,null,null,0,""]
["Renseanlæg 10",null,null,null,null,null,"",""]
["Mindre renseanlæg",null,null,null,null,null,"",""]
["Mindre renseanlæg < 5.000 PE","PE",40,4999,4999,4999,0,0]
["Renseanlæg >= 5.000 PE, Vandbehandling",null,null,null,null,null,"",""]
["Indløb med riste, Konstruktioner","PE",60,0,null,null,0,""]
["Indløb med riste, Mek/EL","PE",20,0,null,null,0,""]
["Indløb med riste, SRO","PE",10,0,null,null,0,""]
["Sand- og fedtfang, Kontruktioner","PE",60,0,null,null,0,""]
["Sand- og fedtfang, Mek/EL","PE",20,0,null,null,0,""]
["Sand- og fedtfang, SRO","PE",10,0,null,null,0,""]
["Forklaring, Konstruktioner","PE",60,0,null,null,0,""]
["Forklaring, Mek/EL","PE",20,0,null,null,0,""]
["Forklaring, SRO","PE",10,0,null,null,0,""]
["Beluftningstanke, Konstruktioner","PE",60,0,null,null,0,""]
["Beluftningstanke, Mek/EL","PE",20,0,null,null,0,""]
["Beluftningstanke, SRO","PE",10,0,null,null,0,""]
["Efterklaringstanke, Konstruktioner","PE",60,0,null,null,0,""]
["Efterklaringstanke, Mek/El","PE",20,0,null,null,{"$f":"IF(D515=\"\",IF(E515>0,\"Ny data\",IF(E515=\"\",\"\",0)),IF(D515=0,IF(E515=0,0,\"Ny data\"),(E515-D515)/D515))","v":0},{"$f":"IF(E515=\"\",IF(F515>0,\"Ny data\",IF(F515=\"\",\"\",0)),IF(E515=0,IF(F515=0,0,\"Ny data\"),(F515-E515)/E515))","v":""}]
["Efterklaringstanke, SRO","PE",10,0,null,null,0,""]
["Efterbehandlingsanlæg (sandfilter), Konstruktioner","PE",60,0,null,null,0,""]
["Efterbehandlingsanlæg (sandfilter), Mek/EL","PE",20,0,null,null,0,""]
["Efterbehandlingsanlæg (sandfilter), SRO","PE",10,0,null,null,0,""]
["Renseanlæg >= 5.000 PE, Slambehandling",null,null,null,null,null,"",""]
["Forafvanding, slam, Konstruktion","PE",60,0,null,null,0,""]
["Forafvanding, slam, Mek/EL","PE",20,0,null,null,0,""]
["Forafvanding, slam, SRO","PE",10,0,null,null,0,""]
["Rådnetanke, slam, Konstruktioner","PE",60,0,null,null,0,""]
["Rådnetanke, slam, Mek/EL","PE",20,0,null,null,0,""]
["Rådnetanke, slam, SRO","PE",10,0,null,null,0,""]
["Gasdisponering, Konstruktioner","PE",60,0,null,null,0,""]
["Gasdisponering, Mek/EL","PE",20,0,null,null,0,""]
["Gasdisponering, SRO","PE",10,0,null,null,0,""]
["Gasdisponering - elproduktionsanlæg, Konstruktioner","PE",60,0,null,null,0,""]
["Gasdisponering - elproduktionsanlæg, Mek/EL","PE",20,0,null,null,0,""]
["Gasdisponering - elproduktionsanlæg, SRO","PE",10,0,null,null,0,""]
["Gasrensning - Aktivt kulfilter","m3/t",15,0,null,null,0,""]
["Gasrensning - Biologisk skrubber","m3/t",15,0,null,null,0,""]
["Opgraderingsanlæg - Membran","m3/t",15,0,null,null,0,""]
["Varmeproduktionsanlæg","m3/t",15,0,null,null,0,""]
["Slutafvanding, slam - lavteknologisk (slambede), Konstruktioner","PE",60,0,null,null,0,""]
["Slutafvanding, slam - lavteknologisk (slambede), Mek/EL","PE",20,0,null,null,0,""]
["Slutafvanding, slam - lavteknologisk (slambede), SRO","PE",10,0,null,null,0,""]
["Slutafvanding, slam - højteknologisk (centrifuger), Konstruktioner","PE",60,0,null,null,0,""]
["Slutafvanding, slam - højteknologisk (centrifuger), Mek/El","PE",20,0,null,null,0,""]
["Slutafvanding, slam - højteknologisk (centrifuger), SRO","PE",10,0,null,null,0,""]
["Renseanlæg >= 5.000 PE, Slamdisponering",null,null,null,null,null,"",""]
["Slutdisponering, slam - lavteknologisk (slammineralisering), Konstruktioner","PE",60,0,null,null,0,""]
["Slutdisponering, slam - lavteknologisk (slammineralisering), Mek/EL","PE",20,0,null,null,0,""]
["Slutdisponering, slam - lavteknologisk (slammineralisering), SRO","PE",10,0,null,null,0,""]
["Slutdisponering, slam - højteknologisk (slamtørring), Konstruktioner","PE",60,0,null,null,0,""]
["Slutdisponering, slam - højteknologisk (slamtørring), Mek/EL","PE",20,0,null,null,0,""]
["Slutdisponering, slam - højteknologisk (slamtørring), SRO","PE",10,0,null,null,0,""]
["Slutdisponering, slam - højteknologisk (slamtørring og -forbrænding), Konstruktioner","PE",60,0,null,null,0,""]
["Slutdisponering, slam - højteknologisk (slamtørring og -forbrænding), Mek/EL","PE",20,0,null,null,0,""]
["Slutdisponering, slam - højteknologisk (slamtørring og -forbrænding), SRO","PE",10,0,null,null,0,""]
["Renseanlæg 12",null,null,null,null,null,"",""]
["Mindre renseanlæg",null,null,null,null,null,"",""]
["Mindre renseanlæg < 5.000 PE","PE",40,260,260,260,0,0]
["Renseanlæg >= 5.000 PE, Vandbehandling",null,null,null,null,null,"",""]
["Indløb med riste, Konstruktioner","PE",60,0,null,null,0,""]
["Indløb med riste, Mek/EL","PE",20,0,null,null,0,""]
["Indløb med riste, SRO","PE",10,0,null,null,0,""]
["Sand- og fedtfang, Kontruktioner","PE",60,0,null,null,0,""]
["Sand- og fedtfang, Mek/EL","PE",20,0,null,null,0,""]
["Sand- og fedtfang, SRO","PE",10,0,null,null,0,""]
["Forklaring, Konstruktioner","PE",60,0,null,null,0,""]
["Forklaring, Mek/EL","PE",20,0,null,null,0,""]
["Forklaring, SRO","PE",10,0,null,null,0,""]
["Beluftningstanke, Konstruktioner","PE",60,0,null,null,0,""]
["Beluftningstanke, Mek/EL","PE",20,0,null,null,0,""]
["Beluftningstanke, SRO","PE",10,0,null,null,0,""]
["Efterklaringstanke, Konstruktioner","PE",60,0,null,null,0,""]
["Efterklaringstanke, Mek/El","PE",20,0,null,null,0,""]
["Efterklaringstanke, SRO","PE",10,0,null,null,0,""]
["Efterbehandlingsanlæg (sandfilter), Konstruktioner","PE",60,0,null,null,0,""]
["Efterbehandlingsanlæg (sandfilter), Mek/EL","PE",20,0,null,null,0,""]
["Efterbehandlingsanlæg (sandfilter), SRO","PE",10,0,null,null,0,""]
["Renseanlæg >= 5.000 PE, Slambehandling",null,null,null,null,null,"",""]
["Forafvanding, slam, Konstruktion","PE",60,0,null,null,0,""]
["Forafvanding, slam, Mek/EL","PE",20,0,null,null,0,""]
["Forafvanding, slam, SRO","PE",10,0,null,null,0,""]
["Rådnetanke, slam, Konstruktioner","PE",60,0,null,null,{"$f":"IF(D579=\"\",IF(E579>0,\"Ny data\",IF(E579=\"\",\"\",0)),IF(D579=0,IF(E579=0,0,\"Ny data\"),(E579-D579)/D579))","v":0},{"$f":"IF(E579=\"\",IF(F579>0,\"Ny data\",IF(F579=\"\",\"\",0)),IF(E579=0,IF(F579=0,0,\"Ny data\"),(F579-E579)/E579))","v":""}]
["Rådnetanke, slam, Mek/EL","PE",20,0,null,null,0,""]
["Rådnetanke, slam, SRO","PE",10,0,null,null,0,""]
["Gasdisponering, Konstruktioner","PE",60,0,null,null,0,""]
["Gasdisponering, Mek/EL","PE",20,0,null,null,0,""]
["Gasdisponering, SRO","PE",10,0,null,null,0,""]
["Gasdisponering - elproduktionsanlæg, Konstruktioner","PE",60,0,null,null,0,""]
["Gasdisponering - elproduktionsanlæg, Mek/EL","PE",20,0,null,null,0,""]
["Gasdisponering - elproduktionsanlæg, SRO","PE",10,0,null,null,0,""]
["Gasrensning - Aktivt kulfilter","m3/t",15,0,null,null,0,""]
["Gasrensning - Biologisk skrubber","m3/t",15,0,null,null,0,""]
["Opgraderingsanlæg - Membran","m3/t",15,0,null,null,0,""]
["Varmeproduktionsanlæg","m3/t",15,0,null,null,0,""]
["Slutafvanding, slam - lavteknologisk (slambede), Konstruktioner","PE",60,0,null,null,0,""]
["Slutafvanding, slam - lavteknologisk (slambede), Mek/EL","PE",20,0,null,null,0,""]
["Slutafvanding, slam - lavteknologisk (slambede), SRO","PE",10,0,null,null,0,""]
["Slutafvanding, slam - højteknologisk (centrifuger), Konstruktioner","PE",60,0,null,null,0,""]
["Slutafvanding, slam - højteknologisk (centrifuger), Mek/El","PE",20,0,null,null,0,""]
["Slutafvanding, slam - højteknologisk (centrifuger), SRO","PE",10,0,null,null,0,""]
["Renseanlæg >= 5.000 PE, Slamdisponering",null,null,null,null,null,"",""]
["Slutdisponering, slam - lavteknologisk (slammineralisering), Konstruktioner","PE",60,0,null,null,0,""]
["Slutdisponering, slam - lavteknologisk (slammineralisering), Mek/EL","PE",20,0,null,null,0,""]
["Slutdisponering, slam - lavteknologisk (slammineralisering), SRO","PE",10,0,null,null,0,""]
["Slutdisponering, slam - højteknologisk (slamtørring), Konstruktioner","PE",60,0,null,null,0,""]
["Slutdisponering, slam - højteknologisk (slamtørring), Mek/EL","PE",20,0,null,null,0,""]
["Slutdisponering, slam - højteknologisk (slamtørring), SRO","PE",10,0,null,null,0,""]
["Slutdisponering, slam - højteknologisk (slamtørring og -forbrænding), Konstruktioner","PE",60,0,null,null,0,""]
["Slutdisponering, slam - højteknologisk (slamtørring og -forbrænding), Mek/EL","PE",20,0,null,null,0,""]
["Slutdisponering, slam - højteknologisk (slamtørring og -forbrænding), SRO","PE",10,0,null,null,0,""]

{"sheet":"Distributionsanlæg","index":1,"n_rows":318,"n_cols":9,"rows_kept":318,"cut":false,"hidden":false,"merged":[[0,0,1,0],[0,1,1,1],[0,2,1,2],[0,3,1,3],[0,8,1,8],[0,4,1,4],[0,5,1,5],[0,6,1,6],[0,7,1,7]]}
["Distributionsanlæg","Enhed","Standard-levetid","Samlet mængde per 31/12-2022","Samlet mængde per 31/12-2023","Samlet mængde per 31/12-2024","Afvigelse 2022-2023","Afvigelse 2023-2024","Bemærkninger"]
[]
["Ledningsnet - Land",null,null,null,null,null,{"$f":"IF(D3=\"\",IF(E3>0,\"Ny data\",IF(E3=\"\",\"\",0)),IF(D3=0,IF(E3=0,0,\"Ny data\"),(E3-D3)/D3))","v":""},{"$f":"IF(E3=\"\",IF(F3>0,\"Ny data\",IF(F3=\"\",\"\",0)),IF(E3=0,IF(F3=0,0,\"Ny data\"),(F3-E3)/E3))","v":""}]
["Ledningsnet ≤ Ø 200 mm ","meter",75,434489,442812,442812,1.9155835936007587E-2,0]
["Ø 200 mm < Ledningsnet ≤ Ø 500 mm ","meter",75,177343,172961,172961,-2.4709179386837934E-2,0]
["Ø 500 mm < Ledningsnet ≤ Ø 800 mm","meter",75,24274,25115,25115,3.4646123424239929E-2,0]
["Ø 800 mm < Ledningsnet ≤ Ø 1000 mm","meter",75,2618,2618,2618,0,0]
["Ø 1000 mm < Ledningsnet ≤ Ø 1200 mm","meter",75,1196,1196,1196,0,0]
["Ø 1200 mm < Ledningsnet ≤ Ø 1600 mm","meter",75,2163,2492,2492,0.15210355987055016,0]
["Ledningsnet > Ø 1600 mm (rørbassiner og transportledninger)","meter",75,65,65,65,0,0]
["Strømpeforing ≤ Ø 200 mm","meter",50,1212,1666,1666,0.37458745874587457,0,"Gennemført mere strømeforing"]
["Strømpeforing Ø 200 mm < Ledningsnet ≤ Ø 500 mm","meter",50,6246,6628,6628,6.1159141850784506E-2,0]
["Strømpeforing Ø 500 mm < Ledningsnet ≤ Ø 800 mm","meter",50,202,202,202,0,0]
["Strømpeforing Ø 800 mm < Ledningsnet ≤ Ø 1000 mm","meter",50,0,null,null,0,""]
["Strømpeforing Ø 1000 mm < Ledningsnet ≤ Ø 1200 mm","meter",50,0,null,null,0,""]
["Strømpeforing Ø 1200 mm < Ledningsnet ≤ Ø 1600 mm","meter",50,0,null,null,0,""]
["Ledningsnet - By",null,null,null,null,null,"",""]
["Ledningsnet ≤ Ø 200 mm ","meter",75,497460,497937,497937,9.5887106501025209E-4,0]
["Ø 200 mm < Ledningsnet ≤ Ø 500 mm ","meter",75,231261,226623,226623,-2.0055262236174713E-2,0]
["Ø 500 mm < Ledningsnet ≤ Ø 800 mm","meter",75,63478,62248,62248,-1.937679195941901E-2,0]
["Ø 800 mm < Ledningsnet ≤ Ø 1000 mm","meter",75,14159,14534,14534,2.6484921251500811E-2,0]
["Ø 1000 mm < Ledningsnet ≤ Ø 1200 mm","meter",75,5783,6123,6123,5.8793014006570984E-2,0]
["Ø 1200 mm < Ledningsnet ≤ Ø 1600 mm","meter",75,6616,6616,6616,0,0]
["Ledningsnet > Ø 1600 mm (rørbassiner og transportledninger)","meter",75,1200,1126,1126,-6.1666666666666668E-2,0]
["Strømpeforing ≤ Ø 200 mm","meter",50,7198,8004,8004,0.11197554876354543,0]
["Strømpeforing Ø 200 mm < Ledningsnet ≤ Ø 500 mm","meter",50,7299,8420,8420,0.1535826825592547,0]
["Strømpeforing Ø 500 mm < Ledningsnet ≤ Ø 800 mm","meter",50,1634,1843,1843,0.12790697674418605,0]
["Strømpeforing Ø 800 mm < Ledningsnet ≤ Ø 1000 mm","meter",50,44,44,44,0,0]
["Strømpeforing Ø 1000 mm < Ledningsnet ≤ Ø 1200 mm","meter",50,0,null,null,0,""]
["Strømpeforing Ø 1200 mm < Ledningsnet ≤ Ø 1600 mm","meter",50,0,null,null,0,""]
["Ledningsnet - City",null,null,null,null,null,"",""]
["Ledningsnet ≤ Ø 200 mm ","meter",75,7204,8648,8648,0.20044419766796223,0,"Alm. Forøgelse"]
["Ø 200 mm < Ledningsnet ≤ Ø 500 mm ","meter",75,6512,7250,7250,0.11332923832923833,0]
["Ø 500 mm < Ledningsnet ≤ Ø 800 mm","meter",75,3094,3232,3232,4.4602456367162251E-2,0]
["Ø 800 mm < Ledningsnet ≤ Ø 1000 mm","meter",75,1165,1285,1285,0.10300429184549356,0]
["Ø 1000 mm < Ledningsnet ≤ Ø 1200 mm","meter",75,409,409,409,0,0]
["Ø 1200 mm < Ledningsnet ≤ Ø 1600 mm","meter",75,70,70,70,0,0]
["Ledningsnet > Ø 1600 mm (rørbassiner og transportledninger)","meter",75,0,0,0,0,0]
["Strømpeforing ≤ Ø 200 mm","meter",50,50,50,50,0,0]
["Strømpeforing Ø 200 mm < Ledningsnet ≤ Ø 500 mm","meter",50,505,505,505,0,0]
["Strømpeforing Ø 500 mm < Ledningsnet ≤ Ø 800 mm","meter",50,16,325,325,19.3125,0,"Gennemført mere strømeforing"]
["Strømpeforing Ø 800 mm < Ledningsnet ≤ Ø 1000 mm","meter",50,0,91,91,"Ny data",0,"Gennemført mere strømeforing"]
["Strømpeforing Ø 1000 mm < Ledningsnet ≤ Ø 1200 mm","meter",50,0,null,null,0,""]
["Strømpeforing Ø 1200 mm < Ledningsnet ≤ Ø 1600 mm","meter",50,0,null,null,0,""]
["Ledningsnet - Indre city",null,null,null,null,null,"",""]
["Ledningsnet ≤ Ø 200 mm ","meter",75,0,null,null,0,""]
["Ø 200 mm < Ledningsnet ≤ Ø 500 mm ","meter",75,0,null,null,0,""]
["Ø 500 mm < Ledningsnet ≤ Ø 800 mm","meter",75,0,null,null,0,""]
["Ø 800 mm < Ledningsnet ≤ Ø 1000 mm","meter",75,0,null,null,0,""]
["Ø 1000 mm < Ledningsnet ≤ Ø 1200 mm","meter",75,0,null,null,0,""]
["Ø 1200 mm < Ledningsnet ≤ Ø 1600 mm","meter",75,0,null,null,0,""]
["Ledningsnet > Ø 1600 mm (rørbassiner og transportledninger)","meter",75,0,null,null,0,""]
["Strømpeforing ≤ Ø 200 mm","meter",50,0,null,null,0,""]
["Strømpeforing Ø 200 mm < Ledningsnet ≤ Ø 500 mm","meter",50,0,null,null,0,""]
["Strømpeforing Ø 500 mm < Ledningsnet ≤ Ø 800 mm","meter",50,0,null,null,0,""]
["Strømpeforing Ø 800 mm < Ledningsnet ≤ Ø 1000 mm","meter",50,0,null,null,0,""]
["Strømpeforing Ø 1000 mm < Ledningsnet ≤ Ø 1200 mm","meter",50,0,null,null,0,""]
["Strømpeforing Ø 1200 mm < Ledningsnet ≤ Ø 1600 mm","meter",50,0,null,null,0,""]
["Brønde og stik, ledningsnet - Land",null,null,null,null,null,"",""]
["Brønde","stk.",75,11774,12140,12140,3.1085442500424665E-2,0]
["Stik","stk.",75,8557,8705,8705,1.7295781231740096E-2,0]
["Brønde og stik, ledningsnet - By",null,null,null,null,null,"",""]
["Brønde","stk.",75,35247,35809,35809,1.5944619400232642E-2,0]
["Stik","stk.",75,30822,31222,31222,1.2977743170462656E-2,0]
["Brønde og stik, ledningsnet - City",null,null,null,null,null,"",""]
["Brønde","stk.",75,924,1011,1011,{"$f":"IF(D66=\"\",IF(E66>0,\"Ny data\",IF(E66=\"\",\"\",0)),IF(D66=0,IF(E66=0,0,\"Ny data\"),(E66-D66)/D66))","v":9.4155844155844159E-2},{"$f":"IF(E66=\"\",IF(F66>0,\"Ny data\",IF(F66=\"\",\"\",0)),IF(E66=0,IF(F66=0,0,\"Ny data\"),(F66-E66)/E66))","v":0}]
["Stik","stk.",75,996,1060,1060,{"$f":"IF(D67=\"\",IF(E67>0,\"Ny data\",IF(E67=\"\",\"\",0)),IF(D67=0,IF(E67=0,0,\"Ny data\"),(E67-D67)/D67))","v":6.4257028112449793E-2},{"$f":"IF(E67=\"\",IF(F67>0,\"Ny data\",IF(F67=\"\",\"\",0)),IF(E67=0,IF(F67=0,0,\"Ny data\"),(F67-E67)/E67))","v":0}]
["Brønde og stik, ledningsnet - Indre city",null,null,null,null,null,{"$f":"IF(D68=\"\",IF(E68>0,\"Ny data\",IF(E68=\"\",\"\",0)),IF(D68=0,IF(E68=0,0,\"Ny data\"),(E68-D68)/D68))","v":""},{"$f":"IF(E68=\"\",IF(F68>0,\"Ny data\",IF(F68=\"\",\"\",0)),IF(E68=0,IF(F68=0,0,\"Ny data\"),(F68-E68)/E68))","v":""}]
["Brønde","stk.",75,0,null,null,0,""]
["Stik","stk.",75,0,null,null,0,""]
["Små pumpestationer (<100 l/s) inkl. SRO-anlæg - Land",null,null,null,null,null,"",""]
["Tryksatte minipumpestationer (husstandssystemer)","stk.",30,248,258,258,4.0322580645161289E-2,0]
["Pumpestationer i brønde (< 6,25 m2), Konstruktioner","stk.",50,41,40,{"$f":"+E73","v":40},-2.4390243902439025E-2,0]
["Pumpestationer i brønde (< 6,25 m2), Mek/EL","stk.",20,59,56,{"$f":"+E74","v":56},-5.0847457627118647E-2,0]
["Pumpestationer i brønde (< 6,25 m2), SRO","stk.",10,41,41,41,0,0]
["Pumpestationer m. overbygning (< 20 m2), Konstruktioner","stk.",50,70,75,75,7.1428571428571425E-2,0]
["Pumpestationer m. overbygning (< 20 m2), Mek/EL","stk.",20,144,142,142,-1.3888888888888888E-2,0]
["Pumpestationer m. overbygning (< 20 m2), SRO","stk.",10,70,70,70,0,0]
["Pumpestationer i underjordiske bygværker (<50 m2), Konstruktioner","stk.",50,4,4,4,0,0]
["Pumpestationer i underjordiske bygværker (<50 m2), Mek/El","stk.",20,11,11,11,0,0]
["Pumpestationer i underjordiske bygværker (<50 m2), SRO","stk.",10,4,4,4,0,0]
["Små pumpestationer (<100 l/s) inkl. SRO-anlæg - By",null,null,null,null,null,"",""]
["Tryksatte minipumpestationer (husstandssystemer)","stk.",30,16,15,{"$f":"+E83","v":15},-6.25E-2,0]
["Pumpestationer i brønde (< 6,25 m2), Konstruktioner","stk.",50,25,25,{"$f":"+E84","v":25},0,0]
["Pumpestationer i brønde (< 6,25 m2), Mek/EL","stk.",20,38,34,34,-0.10526315789473684,0]
["Pumpestationer i brønde (< 6,25 m2), SRO","stk.",10,25,25,25,0,0]
["Pumpestationer m. overbygning (< 20 m2), Konstruktioner","stk.",50,23,23,23,0,0]
["Pumpestationer m. overbygning (< 20 m2), Mek/EL","stk.",20,48,49,49,2.0833333333333332E-2,0]
["Pumpestationer m. overbygning (< 20 m2), SRO","stk.",10,23,23,23,0,0]
["Pumpestationer i underjordiske bygværker (<50 m2), Konstruktioner","stk.",50,3,3,3,0,0]
["Pumpestationer i underjordiske bygværker (<50 m2), Mek/El","stk.",20,6,6,6,0,0]
["Pumpestationer i underjordiske bygværker (<50 m2), SRO","stk.",10,3,3,3,0,0]
["Små pumpestationer (<100 l/s) inkl. SRO-anlæg - City",null,null,null,null,null,"",""]
["Tryksatte minipumpestationer (husstandssystemer)","stk.",30,0,null,null,0,""]
["Pumpestationer i brønde (< 6,25 m2), Konstruktioner","stk.",50,0,null,null,0,""]
["Pumpestationer i brønde (< 6,25 m2), Mek/EL","stk.",20,0,null,null,0,""]
["Pumpestationer i brønde (< 6,25 m2), SRO","stk.",10,0,null,null,0,""]
["Pumpestationer m. overbygning (< 20 m2), Konstruktioner","stk.",50,0,null,null,0,""]
["Pumpestationer m. overbygning (< 20 m2), Mek/EL","stk.",20,0,null,null,0,""]
["Pumpestationer m. overbygning (< 20 m2), SRO","stk.",10,0,null,null,0,""]
["Pumpestationer i underjordiske bygværker (<50 m2), Konstruktioner","stk.",50,0,null,null,0,""]
["Pumpestationer i underjordiske bygværker (<50 m2), Mek/El","stk.",20,0,null,null,0,""]
["Pumpestationer i underjordiske bygværker (<50 m2), SRO","stk.",10,0,null,null,0,""]
["Små pumpestationer (<100 l/s) inkl. SRO-anlæg - Indre city",null,null,null,null,null,"",""]
["Tryksatte minipumpestationer (husstandssystemer)","stk.",30,0,null,null,0,""]
["Pumpestationer i brønde (< 6,25 m2), Konstruktioner","stk.",50,0,null,null,0,""]
["Pumpestationer i brønde (< 6,25 m2), Mek/EL","stk.",20,0,null,null,0,""]
["Pumpestationer i brønde (< 6,25 m2), SRO","stk.",10,0,null,null,0,""]
["Pumpestationer m. overbygning (< 20 m2), Konstruktioner","stk.",50,0,null,null,0,""]
["Pumpestationer m. overbygning (< 20 m2), Mek/EL","stk.",20,0,null,null,0,""]
["Pumpestationer m. overbygning (< 20 m2), SRO","stk.",10,0,null,null,0,""]
["Pumpestationer i underjordiske bygværker (<50 m2), Konstruktioner","stk.",50,0,null,null,0,""]
["Pumpestationer i underjordiske bygværker (<50 m2), Mek/El","stk.",20,0,null,null,0,""]
["Pumpestationer i underjordiske bygværker (<50 m2), SRO","stk.",10,0,null,null,0,""]
["Store pumpestationer: inkl. SRO-anlæg - Land",null,null,null,null,null,"",""]
["Kælder","m2",75,121.7,121.69999999999999,121.69999999999999,-1.1676955394578475E-16,0]
["Pumpeinstallation Miljøklasse A (100-300 l/s) - Mek/EL","stk.",20,4,19,19,3.75,0,"Tørtopstillede pumper"]
["Pumpeinstallation Miljøklasse A (100-300 l/s) - SRO","stk.",10,2,7,7,2.5,0,"Tørtopstillede pumper"]
["Pumpeinstallation Miljøklasse A (300-600 l/s) - Mek/EL","stk.",20,6,6,6,0,0]
["Pumpeinstallation Miljøklasse A (300-600 l/s) - SRO","stk.",10,1,1,1,0,0]
["Pumpeinstallation Miljøklasse A (600-1.000 l/s) - Mek/EL","stk.",20,0,null,null,0,""]
["Pumpeinstallation Miljøklasse A (600-1.000 l/s) - SRO","stk.",10,0,null,null,0,""]
["Pumpeinstallation Miljøklasse A (1.000-1.500 l/s) - Mek/EL","stk.",20,0,null,null,0,""]
["Pumpeinstallation Miljøklasse A (1.000-1.500 l/s) - SRO","stk.",10,0,null,null,0,""]
["Pumpeinstallation Miljøklasse B (100-300 l/s) - Mek/EL","stk.",20,16,3,3,-0.8125,0,"Var korrekt tørtopstillede pumper"]
["Pumpeinstallation Miljøklasse B (100-300 l/s) - SRO","stk.",10,6,1,1,-0.83333333333333337,0,"Var korrekt tørtopstillede pumper"]
["Pumpeinstallation Miljøklasse B (300-600 l/s) - Mek/EL","stk.",20,0,null,null,0,""]
["Pumpeinstallation Miljøklasse B (300-600 l/s) - SRO","stk.",10,0,null,null,0,""]
["Pumpeinstallation Miljøklasse B (600-1.000 l/s) - Mek/EL","stk.",20,0,null,null,0,""]
["Pumpeinstallation Miljøklasse B (600-1.000 l/s) - SRO","stk.",10,0,null,null,0,""]
["Pumpeinstallation Miljøklasse B (1.000-1.500 l/s) - Mek/EL","stk.",20,0,null,null,{"$f":"IF(D131=\"\",IF(E131>0,\"Ny data\",IF(E131=\"\",\"\",0)),IF(D131=0,IF(E131=0,0,\"Ny data\"),(E131-D131)/D131))","v":0},{"$f":"IF(E131=\"\",IF(F131>0,\"Ny data\",IF(F131=\"\",\"\",0)),IF(E131=0,IF(F131=0,0,\"Ny data\"),(F131-E131)/E131))","v":""}]
["Pumpeinstallation Miljøklasse B (1.000-1.500 l/s) - SRO","stk.",10,0,null,null,0,""]
["Overbygning","m2",75,156.6,156.60000000000002,156.60000000000002,1.814923973844445E-16,0]
["Store pumpestationer: inkl. SRO-anlæg - By",null,null,null,null,null,"",""]
["Kælder","m2",75,303,314,314,3.6303630363036306E-2,0]
["Pumpeinstallation Miljøklasse A (100-300 l/s) - Mek/EL","stk.",20,27,21,21,-0.22222222222222221,0,"Færre pumper"]
["Pumpeinstallation Miljøklasse A (100-300 l/s) - SRO","stk.",10,8,7,7,-0.125,0]
["Pumpeinstallation Miljøklasse A (300-600 l/s) - Mek/EL","stk.",20,6,21,21,2.5,0,"Tørtopstillede pumper"]
["Pumpeinstallation Miljøklasse A (300-600 l/s) - SRO","stk.",10,2,5,5,1.5,0,"Tørtopstillede pumper"]
["Pumpeinstallation Miljøklasse A (600-1.000 l/s) - Mek/EL","stk.",20,0,null,null,0,""]
["Pumpeinstallation Miljøklasse A (600-1.000 l/s) - SRO","stk.",10,0,null,null,0,""]
["Pumpeinstallation Miljøklasse A (1.000-1.500 l/s) - Mek/EL","stk.",20,0,null,null,0,""]
["Pumpeinstallation Miljøklasse A (1.000-1.500 l/s) - SRO","stk.",10,0,null,null,0,""]
["Pumpeinstallation Miljøklasse B (100-300 l/s) - Mek/EL","stk.",20,2,null,null,-1,"","Var ikke tidligere tørtopstillede pumper"]
["Pumpeinstallation Miljøklasse B (100-300 l/s) - SRO","stk.",10,1,null,null,-1,"","Var ikke tidligere tørtopstillede pumper"]
["Pumpeinstallation Miljøklasse B (300-600 l/s) - Mek/EL","stk.",20,0,null,null,0,""]
["Pumpeinstallation Miljøklasse B (300-600 l/s) - SRO","stk.",10,0,null,null,0,""]
["Pumpeinstallation Miljøklasse B (600-1.000 l/s) - Mek/EL","stk.",20,0,null,null,0,""]
["Pumpeinstallation Miljøklasse B (600-1.000 l/s) - SRO","stk.",10,0,null,null,0,""]
["Pumpeinstallation Miljøklasse B (1.000-1.500 l/s) - Mek/EL","stk.",20,0,null,null,0,""]
["Pumpeinstallation Miljøklasse B (1.000-1.500 l/s) - SRO","stk.",10,0,null,null,0,""]
["Overbygning ","m2",75,473,480,480,1.4799154334038054E-2,0]
["Store pumpestationer: inkl. SRO-anlæg - City",null,null,null,null,null,"",""]
["Kælder","m2",75,0,null,null,0,""]
["Pumpeinstallation Miljøklasse A (100-300 l/s) - Mek/EL","stk.",20,0,null,null,0,""]
["Pumpeinstallation Miljøklasse A (100-300 l/s) - SRO","stk.",10,0,null,null,0,""]
["Pumpeinstallation Miljøklasse A (300-600 l/s) - Mek/EL","stk.",20,0,null,null,0,""]
["Pumpeinstallation Miljøklasse A (300-600 l/s) - SRO","stk.",10,0,null,null,0,""]
["Pumpeinstallation Miljøklasse A (600-1.000 l/s) - Mek/EL","stk.",20,0,null,null,0,""]
["Pumpeinstallation Miljøklasse A (600-1.000 l/s) - SRO","stk.",10,0,null,null,0,""]
["Pumpeinstallation Miljøklasse A (1.000-1.500 l/s) - Mek/EL","stk.",20,0,null,null,0,""]
["Pumpeinstallation Miljøklasse A (1.000-1.500 l/s) - SRO","stk.",10,0,null,null,0,""]
["Pumpeinstallation Miljøklasse B (100-300 l/s) - Mek/EL","stk.",20,0,null,null,0,""]
["Pumpeinstallation Miljøklasse B (100-300 l/s) - SRO","stk.",10,0,null,null,0,""]
["Pumpeinstallation Miljøklasse B (300-600 l/s) - Mek/EL","stk.",20,0,null,null,0,""]
["Pumpeinstallation Miljøklasse B (300-600 l/s) - SRO","stk.",10,0,null,null,0,""]
["Pumpeinstallation Miljøklasse B (600-1.000 l/s) - Mek/EL","stk.",20,0,null,null,0,""]
["Pumpeinstallation Miljøklasse B (600-1.000 l/s) - SRO","stk.",10,0,null,null,0,""]
["Pumpeinstallation Miljøklasse B (1.000-1.500 l/s) - Mek/EL","stk.",20,0,null,null,0,""]
["Pumpeinstallation Miljøklasse B (1.000-1.500 l/s) - SRO","stk.",10,0,null,null,0,""]
["Overbygning ","m2",75,0,null,null,0,""]
["Store pumpestationer: inkl. SRO-anlæg - Indre city",null,null,null,null,null,"",""]
["Kælder","m2",75,0,null,null,0,""]
["Pumpeinstallation Miljøklasse A (100-300 l/s) - Mek/EL","stk.",20,0,null,null,0,""]
["Pumpeinstallation Miljøklasse A (100-300 l/s) - SRO","stk.",10,0,null,null,0,""]
["Pumpeinstallation Miljøklasse A (300-600 l/s) - Mek/EL","stk.",20,0,null,null,0,""]
["Pumpeinstallation Miljøklasse A (300-600 l/s) - SRO","stk.",10,0,null,null,0,""]
["Pumpeinstallation Miljøklasse A (600-1.000 l/s) - Mek/EL","stk.",20,0,null,null,0,""]
["Pumpeinstallation Miljøklasse A (600-1.000 l/s) - SRO","stk.",10,0,null,null,0,""]
["Pumpeinstallation Miljøklasse A (1.000-1.500 l/s) - Mek/EL","stk.",20,0,null,null,0,""]
["Pumpeinstallation Miljøklasse A (1.000-1.500 l/s) - SRO","stk.",10,0,null,null,0,""]
["Pumpeinstallation Miljøklasse B (100-300 l/s) - Mek/EL","stk.",20,0,null,null,0,""]
["Pumpeinstallation Miljøklasse B (100-300 l/s) - SRO","stk.",10,0,null,null,0,""]
["Pumpeinstallation Miljøklasse B (300-600 l/s) - Mek/EL","stk.",20,0,null,null,0,""]
["Pumpeinstallation Miljøklasse B (300-600 l/s) - SRO","stk.",10,0,null,null,0,""]
["Pumpeinstallation Miljøklasse B (600-1.000 l/s) - Mek/EL","stk.",20,0,null,null,0,""]
["Pumpeinstallation Miljøklasse B (600-1.000 l/s) - SRO","stk.",10,0,null,null,0,""]
["Pumpeinstallation Miljøklasse B (1.000-1.500 l/s) - Mek/EL","stk.",20,0,null,null,0,""]
["Pumpeinstallation Miljøklasse B (1.000-1.500 l/s) - SRO","stk.",10,0,null,null,0,""]
["Overbygning","m2",75,0,null,null,0,""]
["Overløbsbygværker - Land",null,null,null,null,null,"",""]
["Kælder (< 7 m2) ","stk.",75,30,28,28,-6.6666666666666666E-2,0]
["Kælder (7 - 20 m2) ","m2",75,91,91,91,0,0]
["Kælder (20 - 30 m2)","m2",75,0,0,0,0,0]
["Installationer (mindre end 7 m2)","stk.",20,35,28,28,{"$f":"IF(D195=\"\",IF(E195>0,\"Ny data\",IF(E195=\"\",\"\",0)),IF(D195=0,IF(E195=0,0,\"Ny data\"),(E195-D195)/D195))","v":-0.2},{"$f":"IF(E195=\"\",IF(F195>0,\"Ny data\",IF(F195=\"\",\"\",0)),IF(E195=0,IF(F195=0,0,\"Ny data\"),(F195-E195)/E195))","v":0}]
["Installationer, Miljøklasse A. (7-20 m2) - Mek/EL","stk.",20,2,7,7,2.5,0,"Ny opgørelse"]
["Installationer, Miljøklasse A. (7-20 m2) - SRO","stk.",10,6,7,7,0.16666666666666666,0]
["Installationer, Miljøklasse A. (20-30 m2) - Mek/EL","stk.",20,0,null,null,0,""]
["Installationer, Miljøklasse A. (20-30 m2) - SRO","stk.",10,0,null,null,0,""]
["Installationer, Miljøklasse B. (7-20 m2) - Mek/EL","stk.",20,0,null,null,0,""]
["Installationer, Miljøklasse B. (7-20 m2) - SRO","stk.",10,0,null,null,0,""]
["Installationer, Miljøklasse B. (20-30 m2) - Mek/EL","stk.",20,0,null,null,0,""]
["Installationer, Miljøklasse B. (20-30 m2) - SRO","stk.",10,0,null,null,0,""]
["Overbygning","stk.",75,37,35,35,-5.4054054054054057E-2,0]
["Overløbsbygværker - By",null,null,null,null,null,"",""]
["Kælder (< 7 m2) ","stk.",75,9,8,8,-0.1111111111111111,0]
["Kælder (7 - 20 m2) ","m2",75,130,143,143,0.1,0]
["Kælder (20 - 30 m2)","m2",75,70,70,70,0,0]
["Installationer (mindre end 7 m2)","stk.",20,19,20,20,5.2631578947368418E-2,0]
["Installationer, Miljøklasse A. (7-20 m2) - Mek/EL","stk.",20,0,11,11,"Ny data",0,"Oplysningerne manglede ved forrige indberetning"]
["Installationer, Miljøklasse A. (7-20 m2) - SRO","stk.",10,9,11,11,0.22222222222222221,0,"Ny opgørelse"]
["Installationer, Miljøklasse A. (20-30 m2) - Mek/EL","stk.",20,1,1,1,0,0]
["Installationer, Miljøklasse A. (20-30 m2) - SRO","stk.",10,1,1,1,0,0]
["Installationer, Miljøklasse B. (7-20 m2) - Mek/EL","stk.",20,0,null,null,0,""]
["Installationer, Miljøklasse B. (7-20 m2) - SRO","stk.",10,0,null,null,0,""]
["Installationer, Miljøklasse B. (20-30 m2) - Mek/EL","stk.",20,0,null,null,0,""]
["Installationer, Miljøklasse B. (20-30 m2) - SRO","stk.",10,0,null,null,0,""]
["Overbygning","stk.",75,20,20,20,0,0]
["Overløbsbygværker - City",null,null,null,null,null,"",""]
["Kælder (< 7 m2) ","stk.",75,0,null,null,0,""]
["Kælder (7 - 20 m2) ","m2",75,0,null,null,0,""]
["Kælder (20 - 30 m2)","m2",75,0,null,null,0,""]
["Installationer (mindre end 7 m2)","stk.",20,0,null,null,0,""]
["Installationer, Miljøklasse A. (7-20 m2) - Mek/EL","stk.",20,0,null,null,0,""]
["Installationer, Miljøklasse A. (7-20 m2) - SRO","stk.",10,0,null,null,0,""]
["Installationer, Miljøklasse A. (20-30 m2) - Mek/EL","stk.",20,0,null,null,0,""]
["Installationer, Miljøklasse A. (20-30 m2) - SRO","stk.",10,0,null,null,0,""]
["Installationer, Miljøklasse B. (7-20 m2) - Mek/EL","stk.",20,0,null,null,0,""]
["Installationer, Miljøklasse B. (7-20 m2) - SRO","stk.",10,0,null,null,0,""]
["Installationer, Miljøklasse B. (20-30 m2) - Mek/EL","stk.",20,0,null,null,0,""]
["Installationer, Miljøklasse B. (20-30 m2) - SRO","stk.",10,0,null,null,0,""]
["Overbygning (efter beliggenhed) ","stk.",75,0,null,null,0,""]
["Overløbsbygværker - Indre city",null,null,null,null,null,"",""]
["Kælder (< 7 m2) ","stk.",75,0,null,null,0,""]
["Kælder (7 - 20 m2) ","m2",75,0,null,null,0,""]
["Kælder (20 - 30 m2)","m2",75,0,null,null,0,""]
["Installationer (mindre end 7 m2)","stk.",20,0,null,null,0,""]
["Installationer, Miljøklasse A. (7-20 m2) - Mek/EL","stk.",20,0,null,null,0,""]
["Installationer, Miljøklasse A. (7-20 m2) - SRO","stk.",10,0,null,null,0,""]
["Installationer, Miljøklasse A. (20-30 m2) - Mek/EL","stk.",20,0,null,null,0,""]
["Installationer, Miljøklasse A. (20-30 m2) - SRO","stk.",10,0,null,null,0,""]
["Installationer, Miljøklasse B. (7-20 m2) - Mek/EL","stk.",20,0,null,null,0,""]
["Installationer, Miljøklasse B. (7-20 m2) - SRO","stk.",10,0,null,null,0,""]
["Installationer, Miljøklasse B. (20-30 m2) - Mek/EL","stk.",20,0,null,null,0,""]
["Installationer, Miljøklasse B. (20-30 m2) - SRO","stk.",10,0,null,null,0,""]
["Overbygning","stk.",75,0,null,null,0,""]
["Forsinkelsesbassiner - Land",null,null,null,null,null,"",""]
["Forsinkelsesbassiner, lukkede uden automatisk rensning og SRO (mindre end 1.000 m3)","m³",50,1544,null,null,-1,"","Anlæg uden SRO"]
["Forsinkelsesbassiner, lukkede med automatisk rensning og SRO (mindre end 1.000 m3) - Konstruktioner","m³",75,1872,3735,3735,0.99519230769230771,0,"Anlæg med SRO"]
["Forsinkelsesbassiner, lukkede med automatisk rensning og SRO (mindre end 1.000 m3) - Mek/EL","m³",20,1872,3735,3735,0.99519230769230771,0,"Anlæg med SRO"]
["Forsinkelsesbassiner, lukkede med automatisk rensning og SRO (mindre end 1.000 m3) - SRO ","m³",10,1872,3735,3735,0.99519230769230771,0,"Anlæg med SRO"]
["Forsinkelsesbassiner, lukkede (1.000-4.000 m3) - Konstruktioner","m³",75,14600,0,0,-1,0,"Bassin har været placeret i forkerte interval"]
["Forsinkelsesbassiner, lukkede (1.000-4.000 m3) - Mek/EL","m³",20,14600,0,0,-1,0,"Bassin har været placeret i forkerte interval"]
["Forsinkelsesbassiner, lukkede (1.000-4.000 m3) - SRO","m³",10,14600,0,0,-1,0,"Bassin har været placeret i forkerte interval"]
["Forsinkelsesbassiner, lukkede (4.000-10.000 m3) - Konstruktioner","m³",75,0,15000,15000,"Ny data",0,"Bassin har været placeret i forkerte interval"]
["Forsinkelsesbassiner, lukkede (4.000-10.000 m3) - Mek/EL","m³",20,0,15000,15000,"Ny data",0,"Bassin har været placeret i forkerte interval"]
["Forsinkelsesbassiner, lukkede (4.000-10.000 m3) - SRO","m³",10,0,15000,15000,"Ny data",0,"Bassin har været placeret i forkerte interval"]
["Forsinkelsesbassiner, lukkede (større end 10.000 m3) - Konstruktioner","m³",75,0,null,null,0,""]
["Forsinkelsesbassiner, lukkede (større end 10.000 m3) - Mek/EL","m³",20,0,null,null,{"$f":"IF(D259=\"\",IF(E259>0,\"Ny data\",IF(E259=\"\",\"\",0)),IF(D259=0,IF(E259=0,0,\"Ny data\"),(E259-D259)/D259))","v":0},{"$f":"IF(E259=\"\",IF(F259>0,\"Ny data\",IF(F259=\"\",\"\",0)),IF(E259=0,IF(F259=0,0,\"Ny data\"),(F259-E259)/E259))","v":""}]
["Forsinkelsesbassiner, lukkede (større end 10.000 m3) - SRO","m³",10,0,null,null,0,""]
["Forsinkelsesbassiner - By",null,null,null,null,null,"",""]
["Forsinkelsesbassiner, lukkede uden automatisk rensning og SRO (mindre end 1.000 m3)","m³",50,1310,0,0,-1,0,"Anlæg uden SRO"]
["Forsinkelsesbassiner, lukkede med automatisk rensning og SRO (mindre end 1.000 m3) - Konstruktioner","m³",75,6313,6852,6852,8.537937589101853E-2,0,"Anlæg med SRO"]
["Forsinkelsesbassiner, lukkede med automatisk rensning og SRO (mindre end 1.000 m3) - Mek/EL","m³",20,6313,6852,6852,8.537937589101853E-2,0,"Anlæg med SRO"]
["Forsinkelsesbassiner, lukkede med automatisk rensning og SRO (mindre end 1.000 m3) - SRO ","m³",10,6313,6852,6852,8.537937589101853E-2,0,"Anlæg med SRO"]
["Forsinkelsesbassiner, lukkede (1.000-4.000 m3) - Konstruktioner","m³",75,7996,9047,9047,0.13144072036018009,0]
["Forsinkelsesbassiner, lukkede (1.000-4.000 m3) - Mek/EL","m³",20,7996,9047,9047,0.13144072036018009,0]
["Forsinkelsesbassiner, lukkede (1.000-4.000 m3) - SRO","m³",10,7996,9047,9047,0.13144072036018009,0]
["Forsinkelsesbassiner, lukkede (4.000-10.000 m3) - Konstruktioner","m³",75,0,null,null,0,""]
["Forsinkelsesbassiner, lukkede (4.000-10.000 m3) - Mek/EL","m³",20,0,null,null,0,""]
["Forsinkelsesbassiner, lukkede (4.000-10.000 m3) - SRO","m³",10,0,null,null,0,""]
["Forsinkelsesbassiner, lukkede (større end 10.000 m3) - Konstruktioner","m³",75,0,null,null,0,""]
["Forsinkelsesbassiner, lukkede (større end 10.000 m3) - Mek/EL","m³",20,0,null,null,0,""]
["Forsinkelsesbassiner, lukkede (større end 10.000 m3) - SRO","m³",10,0,null,null,0,""]
["Forsinkelsesbassiner - City",null,null,null,null,null,"",""]
["Forsinkelsesbassiner, lukkede uden automatisk rensning og SRO (mindre end 1.000 m3)","m³",50,0,null,null,0,""]
["Forsinkelsesbassiner, lukkede med automatisk rensning og SRO (mindre end 1.000 m3) - Konstruktioner","m³",75,0,null,null,0,""]
["Forsinkelsesbassiner, lukkede med automatisk rensning og SRO (mindre end 1.000 m3) - Mek/EL","m³",20,0,null,null,0,""]
["Forsinkelsesbassiner, lukkede med automatisk rensning og SRO (mindre end 1.000 m3) - SRO ","m³",10,0,null,null,0,""]
["Forsinkelsesbassiner, lukkede (1.000-4.000 m3) - Konstruktioner","m³",75,0,null,null,0,""]
["Forsinkelsesbassiner, lukkede (1.000-4.000 m3) - Mek/EL","m³",20,0,null,null,0,""]
["Forsinkelsesbassiner, lukkede (1.000-4.000 m3) - SRO","m³",10,0,null,null,0,""]
["Forsinkelsesbassiner, lukkede (4.000-10.000 m3) - Konstruktioner","m³",75,0,null,null,0,""]
["Forsinkelsesbassiner, lukkede (4.000-10.000 m3) - Mek/EL","m³",20,0,null,null,0,""]
["Forsinkelsesbassiner, lukkede (4.000-10.000 m3) - SRO","m³",10,0,null,null,0,""]
["Forsinkelsesbassiner, lukkede (større end 10.000 m3) - Konstruktioner","m³",75,0,null,null,0,""]
["Forsinkelsesbassiner, lukkede (større end 10.000 m3) - Mek/EL","m³",20,0,null,null,0,""]
["Forsinkelsesbassiner, lukkede (større end 10.000 m3) - SRO","m³",10,0,null,null,0,""]
["Forsinkelsesbassiner - Indre city",null,null,null,null,null,"",""]
["Forsinkelsesbassiner, lukkede uden automatisk rensning og SRO (mindre end 1.000 m3)","m³",50,0,null,null,0,""]
["Forsinkelsesbassiner, lukkede med automatisk rensning og SRO (mindre end 1.000 m3) - Konstruktioner","m³",75,0,null,null,0,""]
["Forsinkelsesbassiner, lukkede med automatisk rensning og SRO (mindre end 1.000 m3) - Mek/EL","m³",20,0,null,null,0,""]
["Forsinkelsesbassiner, lukkede med automatisk rensning og SRO (mindre end 1.000 m3) - SRO ","m³",10,0,null,null,0,""]
["Forsinkelsesbassiner, lukkede (1.000-4.000 m3) - Konstruktioner","m³",75,0,null,null,0,""]
["Forsinkelsesbassiner, lukkede (1.000-4.000 m3) - Mek/EL","m³",20,0,null,null,0,""]
["Forsinkelsesbassiner, lukkede (1.000-4.000 m3) - SRO","m³",10,0,null,null,0,""]
["Forsinkelsesbassiner, lukkede (4.000-10.000 m3) - Konstruktioner","m³",75,0,null,null,0,""]
["Forsinkelsesbassiner, lukkede (4.000-10.000 m3) - Mek/EL","m³",20,0,null,null,0,""]
["Forsinkelsesbassiner, lukkede (4.000-10.000 m3) - SRO","m³",10,0,null,null,0,""]
["Forsinkelsesbassiner, lukkede (større end 10.000 m3) - Konstruktioner","m³",75,0,null,null,0,""]
["Forsinkelsesbassiner, lukkede (større end 10.000 m3) - Mek/EL","m³",20,0,null,null,0,""]
["Forsinkelsesbassiner, lukkede (større end 10.000 m3) - SRO","m³",10,0,null,null,0,""]
["Sparebassin/Laguner/Jordbassiner - Land",null,null,null,null,null,"",""]
["Jordbassin Klasse A og B","m³",50,158969,159880,159880,5.7306770502425003E-3,0]
["Indløb-/udløbsarrangement","stk.",75,63,70,70,0.1111111111111111,0]
["Andre bygninger (tekniske installationer, målere mv.)","m2",75,0,null,null,0,""]
["Sparebassin/Laguner/Jordbassiner - By",null,null,null,null,null,"",""]
["Jordbassin Klasse A og B","m³",50,95135,191057,191057,1.0082724549324644,0,"Ændret defination"]
["Indløb-/udløbsarrangement","stk.",75,67,79,79,0.17910447761194029,0]
["Andre bygninger (tekniske installationer, målere mv.)","m2",75,0,null,null,0,""]
["Sparebassin/Laguner/Jordbassiner - City",null,null,null,null,null,"",""]
["Jordbassin Klasse A og B","m³",50,0,null,null,0,""]
["Indløb-/udløbsarrangement","stk.",75,0,null,null,0,""]
["Andre bygninger (tekniske installationer, målere mv.)","m2",75,0,null,null,0,""]
["Sparebassin/Laguner/Jordbassiner - Indre city",null,null,null,null,null,"",""]
["Jordbassin Klasse A og B","m³",50,0,null,null,0,""]
["Indløb-/udløbsarrangement","stk.",75,0,null,null,0,""]
["Andre bygninger (tekniske installationer, målere mv.)","m2",75,0,null,null,0,""]

{"sheet":"Fællesfunktionsanlæg","index":2,"n_rows":13,"n_cols":9,"rows_kept":13,"cut":false,"hidden":false,"merged":[[0,0,1,0],[0,1,1,1],[0,2,1,2],[0,3,1,3],[0,8,1,8],[0,4,1,4],[0,5,1,5],[0,6,1,6],[0,7,1,7]]}
["Fællesfunktionsanlæg","Enhed","Standard-levetid","Samlet mængde per 31/12-2022","Samlet mængde per 31/12-2023","Samlet mængde per 31/12-2024","Afvigelse 2022-2023","Afvigelse 2023-2024","Bemærkninger"]
[]
["Andre",null,null,null,null,null,{"$f":"IF(D3=\"\",IF(E3>0,\"Ny data\",IF(E3=\"\",\"\",0)),IF(D3=0,IF(E3=0,0,\"Ny data\"),(E3-D3)/D3))","v":""},{"$f":"IF(E3=\"\",IF(F3>0,\"Ny data\",IF(F3=\"\",\"\",0)),IF(E3=0,IF(F3=0,0,\"Ny data\"),(F3-E3)/E3))","v":""}]
["Administrationbygninger","m2",75,2191,2191,2191,0,0]
["Arbejdsplads og kontor","stk.",5,55,55,55,0,0]
["Køretøjer, personbil","stk.",5,2,2,2,0,0]
["Køretøjer, små lastvogne (< 3.500 kg.)","stk.",5,8,9,9,0.125,0]
["Køretøjer, store lastvogne (> 3.500 kg.)","stk.",5,6,6,6,0,0]
["Køretøjer, entreprenørmaskiner","stk.",5,15,18,18,0.2,0]
["Slamsugere","stk.",5,0,null,null,0,""]
["Værksteder, garager","m2",75,5841,5841,5841,0,0]
["Solcelleanlæg eksl. Inverter","kWp",25,0,null,null,0,""]
["Inverter til solcelleanlæg","kWp",10,0,null,null,0,""]